Workbook

Sheet Denver
C1: Account # | D1: =IF(D2="","",VLOOKUP(D2,Sheet2!G:K,2,FALSE)) ->  | L1: =Sheet2!G:G -> 626 On Rood | M1: =Sheet2!A:A -> 0
C2: Account Name: | L2: =Sheet2!G:G -> 7 Hermits Brewing Co | M2: =Sheet2!A:A -> 1000
C3: Address: | D3: =IF(D2="","",VLOOKUP(D2,Sheet2!G:K,3,FALSE)) ->  | L3: =Sheet2!G:G -> All Pro Liquors | M3: =Sheet2!A:A -> 1001
C4: City: | D4: =IF(D2="","",VLOOKUP(D2,Sheet2!G:K,5,FALSE)) ->  | L4: =Sheet2!G:G -> Allegria | M4: =Sheet2!A:A -> 1002
C5: Delivery Date: | L5: =Sheet2!G:G -> Alpine Wine & Spirit | M5: =Sheet2!A:A -> 1003
C6: Comments: | L6: =Sheet2!G:G -> Andy's Liquor Mart | M6: =Sheet2!A:A -> 1004
L7: =Sheet2!G:G -> Antlers Discount Liquors | M7: =Sheet2!A:A -> 1005
A8: CASES | B8: BOTTLES | C8: ITEM # | D8: DESCRIPTION | E8: FRONT LINE | F8: CASE DISCOUNT | G8: CASE PRICE | H8: BOTTLE PRICE | I8: NET | L8: =Sheet2!G:G -> Apres | M8: =Sheet2!A:A -> 1007
D9: =IF(C9="","",VLOOKUP(C9,Sheet2!A:E,2,FALSE)) ->  | E9: =IF(C9="","",VLOOKUP(C9,Sheet2!A:C,3,FALSE)) ->  | G9: =IF(C9="","",E9-F9) ->  | H9: =IF(C9="","",G9/VLOOKUP(C9,Sheet2!A:E,5,FALSE)) ->  | I9: =IF(C9="","",(A9*G9)+(B9*H9)) ->  | L9: =Sheet2!G:G -> Arapahoe Basin Ski Area | M9: =Sheet2!A:A -> 1008
D10: =IF(C10="","",VLOOKUP(C10,Sheet2!A:E,2,FALSE)) ->  | E10: =IF(C10="","",VLOOKUP(C10,Sheet2!A:C,3,FALSE)) ->  | G10: =IF(C10="","",E10-F10) ->  | H10: =IF(C10="","",G10/VLOOKUP(C10,Sheet2!A:E,5,FALSE)) ->  | I10: =IF(C10="","",(A10*G10)+(B10*H10)) ->  | L10: =Sheet2!G:G -> Arctic Liquors | M10: =Sheet2!A:A -> 1009
D11: =IF(C11="","",VLOOKUP(C11,Sheet2!A:E,2,FALSE)) ->  | E11: =IF(C11="","",VLOOKUP(C11,Sheet2!A:C,3,FALSE)) ->  | H11: =IF(C11="","",G11/VLOOKUP(C11,Sheet2!A:E,5,FALSE)) ->  | L11: =Sheet2!G:G -> Aspen Wine and Spirits | M11: =Sheet2!A:A -> 1010
D12: =IF(C12="","",VLOOKUP(C12,Sheet2!A:E,2,FALSE)) ->  | E12: =IF(C12="","",VLOOKUP(C12,Sheet2!A:C,3,FALSE)) ->  | H12: =IF(C12="","",G12/VLOOKUP(C12,Sheet2!A:E,5,FALSE)) ->  | L12: =Sheet2!G:G -> Aspen Wine Guild | M12: =Sheet2!A:A -> 1020
D13: =IF(C13="","",VLOOKUP(C13,Sheet2!A:E,2,FALSE)) ->  | E13: =IF(C13="","",VLOOKUP(C13,Sheet2!A:C,3,FALSE)) ->  | H13: =IF(C13="","",G13/VLOOKUP(C13,Sheet2!A:E,5,FALSE)) ->  | L13: =Sheet2!G:G -> Avon Liquors | M13: =Sheet2!A:A -> 1021
D14: =IF(C14="","",VLOOKUP(C14,Sheet2!A:E,2,FALSE)) ->  | E14: =IF(C14="","",VLOOKUP(C14,Sheet2!A:C,3,FALSE)) ->  | H14: =IF(C14="","",G14/VLOOKUP(C14,Sheet2!A:E,5,FALSE)) ->  | L14: =Sheet2!G:G -> Barley, The | M14: =Sheet2!A:A -> 1022
D15: =IF(C15="","",VLOOKUP(C15,Sheet2!A:E,2,FALSE)) ->  | E15: =IF(C15="","",VLOOKUP(C15,Sheet2!A:C,3,FALSE)) ->  | H15: =IF(C15="","",G15/VLOOKUP(C15,Sheet2!A:E,5,FALSE)) ->  | L15: =Sheet2!G:G -> Bart & Yeti's | M15: =Sheet2!A:A -> 1023
D16: =IF(C16="","",VLOOKUP(C16,Sheet2!A:E,2,FALSE)) ->  | E16: =IF(C16="","",VLOOKUP(C16,Sheet2!A:C,3,FALSE)) ->  | H16: =IF(C16="","",G16/VLOOKUP(C16,Sheet2!A:E,5,FALSE)) ->  | L16: =Sheet2!G:G -> Beaver Liquors | M16: =Sheet2!A:A -> 1024
D17: =IF(C17="","",VLOOKUP(C17,Sheet2!A:E,2,FALSE)) ->  | E17: =IF(C17="","",VLOOKUP(C17,Sheet2!A:C,3,FALSE)) ->  | H17: =IF(C17="","",G17/VLOOKUP(C17,Sheet2!A:E,5,FALSE)) ->  | L17: =Sheet2!G:G -> Big House Burgers | M17: =Sheet2!A:A -> 1109
D18: =IF(C18="","",VLOOKUP(C18,Sheet2!A:E,2,FALSE)) ->  | E18: =IF(C18="","",VLOOKUP(C18,Sheet2!A:C,3,FALSE)) ->  | H18: =IF(C18="","",G18/VLOOKUP(C18,Sheet2!A:E,5,FALSE)) ->  | L18: =Sheet2!G:G -> Bistro CV | M18: =Sheet2!A:A -> 1209
D19: =IF(C19="","",VLOOKUP(C19,Sheet2!A:E,2,FALSE)) ->  | E19: =IF(C19="","",VLOOKUP(C19,Sheet2!A:C,3,FALSE)) ->  | H19: =IF(C19="","",G19/VLOOKUP(C19,Sheet2!A:E,5,FALSE)) ->  | L19: =Sheet2!G:G -> Black Diamond Bistro | M19: =Sheet2!A:A -> 1220
D20: =IF(C20="","",VLOOKUP(C20,Sheet2!A:E,2,FALSE)) ->  | E20: =IF(C20="","",VLOOKUP(C20,Sheet2!A:C,3,FALSE)) ->  | H20: =IF(C20="","",G20/VLOOKUP(C20,Sheet2!A:E,5,FALSE)) ->  | L20: =Sheet2!G:G -> Blu's | M20: =Sheet2!A:A -> 1406
D21: =IF(C21="","",VLOOKUP(C21,Sheet2!A:E,2,FALSE)) ->  | E21: =IF(C21="","",VLOOKUP(C21,Sheet2!A:C,3,FALSE)) ->  | H21: =IF(C21="","",G21/VLOOKUP(C21,Sheet2!A:E,5,FALSE)) ->  | L21: =Sheet2!G:G -> Bookcliff Country Club | M21: =Sheet2!A:A -> 1450
D22: =IF(C22="","",VLOOKUP(C22,Sheet2!A:E,2,FALSE)) ->  | E22: =IF(C22="","",VLOOKUP(C22,Sheet2!A:C,3,FALSE)) ->  | H22: =IF(C22="","",G22/VLOOKUP(C22,Sheet2!A:E,5,FALSE)) ->  | L22: =Sheet2!G:G -> Bookcliff Liquors | M22: =Sheet2!A:A -> 1510
D23: =IF(C23="","",VLOOKUP(C23,Sheet2!A:E,2,FALSE)) ->  | E23: =IF(C23="","",VLOOKUP(C23,Sheet2!A:C,3,FALSE)) ->  | H23: =IF(C23="","",G23/VLOOKUP(C23,Sheet2!A:E,5,FALSE)) ->  | L23: =Sheet2!G:G -> Bottle Pass Liquors | M23: =Sheet2!A:A -> 1515
D24: =IF(C24="","",VLOOKUP(C24,Sheet2!A:E,2,FALSE)) ->  | E24: =IF(C24="","",VLOOKUP(C24,Sheet2!A:C,3,FALSE)) ->  | H24: =IF(C24="","",G24/VLOOKUP(C24,Sheet2!A:E,5,FALSE)) ->  | L24: =Sheet2!G:G -> Bottle Shop Liquor | M24: =Sheet2!A:A -> 1550
D25: =IF(C25="","",VLOOKUP(C25,Sheet2!A:E,2,FALSE)) ->  | E25: =IF(C25="","",VLOOKUP(C25,Sheet2!A:C,3,FALSE)) ->  | H25: =IF(C25="","",G25/VLOOKUP(C25,Sheet2!A:E,5,FALSE)) ->  | L25: =Sheet2!G:G -> Breckenridge Ale House | M25: =Sheet2!A:A -> 1551
D26: =IF(C26="","",VLOOKUP(C26,Sheet2!A:E,2,FALSE)) ->  | E26: =IF(C26="","",VLOOKUP(C26,Sheet2!A:C,3,FALSE)) ->  | H26: =IF(C26="","",G26/VLOOKUP(C26,Sheet2!A:E,5,FALSE)) ->  | L26: =Sheet2!G:G -> Broadway Liquors | M26: =Sheet2!A:A -> 2006
D27: =IF(C27="","",VLOOKUP(C27,Sheet2!A:E,2,FALSE)) ->  | E27: =IF(C27="","",VLOOKUP(C27,Sheet2!A:C,3,FALSE)) ->  | H27: =IF(C27="","",G27/VLOOKUP(C27,Sheet2!A:E,5,FALSE)) ->  | L27: =Sheet2!G:G -> C&H Spirit Solutions | M27: =Sheet2!A:A -> 2058
D28: =IF(C28="","",VLOOKUP(C28,Sheet2!A:E,2,FALSE)) ->  | E28: =IF(C28="","",VLOOKUP(C28,Sheet2!A:C,3,FALSE)) ->  | H28: =IF(C28="","",G28/VLOOKUP(C28,Sheet2!A:E,5,FALSE)) ->  | L28: =Sheet2!G:G -> Carelli's Pizzeria | M28: =Sheet2!A:A -> 3008
D29: =IF(C29="","",VLOOKUP(C29,Sheet2!A:E,2,FALSE)) ->  | E29: =IF(C29="","",VLOOKUP(C29,Sheet2!A:C,3,FALSE)) ->  | H29: =IF(C29="","",G29/VLOOKUP(C29,Sheet2!A:E,5,FALSE)) ->  | L29: =Sheet2!G:G -> Carl's Pharmacy | M29: =Sheet2!A:A -> 3081
H30: Total: | I30: =SUM(I9:I29) -> 0 | L30: =Sheet2!G:G -> Carl's Tavern | M30: =Sheet2!A:A -> 3082
L31: =Sheet2!G:G -> Cellar Liquors | M31: =Sheet2!A:A -> 3083
L32: =Sheet2!G:G -> Center Town Liquors | M32: =Sheet2!A:A -> 3091
L33: =Sheet2!G:G -> Central Park Liquors | M33: =Sheet2!A:A -> 3092
L34: =Sheet2!G:G -> Cheeky Monk | M34: =Sheet2!A:A -> 3093
L35: =Sheet2!G:G -> Choice Liquor | M35: =Sheet2!A:A -> 4001
L36: =Sheet2!G:G -> Circle R Bar | M36: =Sheet2!A:A -> 4002
L37: =Sheet2!G:G -> Citrolas Italian Grill & Bar | M37: =Sheet2!A:A -> 4003
L38: =Sheet2!G:G -> City Liquors | M38: =Sheet2!A:A -> 4025
L39: =Sheet2!G:G -> Clifton Liquors | M39: =Sheet2!A:A -> 4051
L40: =Sheet2!G:G -> College Liquors | M40: =Sheet2!A:A -> 4052
L41: =Sheet2!G:G -> Cooper Wine & Spirits | M41: =Sheet2!A:A -> 4053
L42: =Sheet2!G:G -> Cork's Fine Wines | M42: =Sheet2!A:A -> 4055
L43: =Sheet2!G:G -> Coronado Liquors | M43: =Sheet2!A:A -> 4056
L44: =Sheet2!G:G -> Cottonwood Liquors | M44: =Sheet2!A:A -> 4057
L45: =Sheet2!G:G -> Country Club liquors | M45: =Sheet2!A:A -> 4058
L46: =Sheet2!G:G -> Coyote Café | M46: =Sheet2!A:A -> 4059
L47: =Sheet2!G:G -> Crossroads Wine & Spirit | M47: =Sheet2!A:A -> 4060
L48: =Sheet2!G:G -> Davetos Italian Restaurant | M48: =Sheet2!A:A -> 4061
L49: =Sheet2!G:G -> Devil's Thumb Ranch | M49: =Sheet2!A:A -> 4062
L50: =Sheet2!G:G -> Dillon Ridge Liquors | M50: =Sheet2!A:A -> 4063
L51: =Sheet2!G:G -> Dolce Vita | M51: =Sheet2!A:A -> 4064
L52: =Sheet2!G:G -> Double Diamonds Bar | M52: =Sheet2!A:A -> 4065
L53: =Sheet2!G:G -> Eagle liiquor Mart | M53: =Sheet2!A:A -> 4090
L54: =Sheet2!G:G -> Eagle Ranch Wine & Spirits | M54: =Sheet2!A:A -> 4091
L55: =Sheet2!G:G -> East Valley Liquors | M55: =Sheet2!A:A -> 4092
L56: =Sheet2!G:G -> Eastside Liquor | M56: =Sheet2!A:A -> 4095
L57: =Sheet2!G:G -> El Horizonte | M57: =Sheet2!A:A -> 5000
L58: =Sheet2!G:G -> El Jebeverage | M58: =Sheet2!A:A -> 5001
L59: =Sheet2!G:G -> Elk Camp Restaurant | M59: =Sheet2!A:A -> 5002
L60: =Sheet2!G:G -> Elmer Suds Liquor | M60: =Sheet2!A:A -> 5003
L61: =Sheet2!G:G -> Elway's | M61: =Sheet2!A:A -> 5004
L62: =Sheet2!G:G -> Ember | M62: =Sheet2!A:A -> 5009
L63: =Sheet2!G:G -> Enterprize Liquor | M63: =Sheet2!A:A -> 5040
L64: =Sheet2!G:G -> Enzo's | M64: =Sheet2!A:A -> 5041
L65: =Sheet2!G:G -> Enzo's Pizza Shack | M65: =Sheet2!A:A -> 5051
L66: =Sheet2!G:G -> Eureka Mediterranean Street Food | M66: =Sheet2!A:A -> 5052
L67: =Sheet2!G:G -> Fariground Wine & Liquor | M67: =Sheet2!A:A -> 5053
L68: =Sheet2!G:G -> Finbarr's | M68: =Sheet2!A:A -> 5054
L69: =Sheet2!G:G -> Finbarr's Irish Pub and Kitchen | M69: =Sheet2!A:A -> 5055
L70: =Sheet2!G:G -> Fisher's Liquor Barn | M70: =Sheet2!A:A -> 5056
L71: =Sheet2!G:G -> Flights & Pints Tasting Room | M71: =Sheet2!A:A -> 5057
L72: =Sheet2!G:G -> Fly-N-Roosters | M72: =Sheet2!A:A -> 5058
L73: =Sheet2!G:G -> Four Dogs Wine & Spirits | M73: =Sheet2!A:A -> 5059
L74: =Sheet2!G:G -> Four Seasons Vail | M74: =Sheet2!A:A -> 5070
L75: =Sheet2!G:G -> Frisco Liquors | M75: =Sheet2!A:A -> 5071
L76: =Sheet2!G:G -> Frisco Wine Merchant | M76: =Sheet2!A:A -> 5072
L77: =Sheet2!G:G -> Fruita Liquor Mart | M77: =Sheet2!A:A -> 5076
L78: =Sheet2!G:G -> Fun Junction Liquors | M78: =Sheet2!A:A -> 5077
L79: =Sheet2!G:G -> Geno's | M79: =Sheet2!A:A -> 5078
L80: =Sheet2!G:G -> Glenwood Canyon Brew Pub | M80: =Sheet2!A:A -> 5079
L81: =Sheet2!G:G -> Grand Avenue Liquors | M81: =Sheet2!A:A -> 5080
L82: =Sheet2!G:G -> Grappa | M82: =Sheet2!A:A -> 5081
L83: =Sheet2!G:G -> Great Western Grog Shop | M83: =Sheet2!A:A -> 5082
L84: =Sheet2!G:G -> Greco's | M84: =Sheet2!A:A -> 5083
L85: =Sheet2!G:G -> Grouse Montain Grill | M85: =Sheet2!A:A -> 5084
L86: =Sheet2!G:G -> Gypsum Liquors | M86: =Sheet2!A:A -> 5086
L87: =Sheet2!G:G -> Hooked | M87: =Sheet2!A:A -> 5087
L88: =Sheet2!G:G -> Hooters (Grand Jct.) | M88: =Sheet2!A:A -> 5088
L89: =Sheet2!G:G -> Hops Culture | M89: =Sheet2!A:A -> 6000
L90: =Sheet2!G:G -> Horizon Liquors | M90: =Sheet2!A:A -> 6001
L91: =Sheet2!G:G -> Hotel Jerome | M91: =Sheet2!A:A -> 6002
L92: =Sheet2!G:G -> In the Middle Liquors | M92: =Sheet2!A:A -> 6003
L93: =Sheet2!G:G -> Italian Underground | M93: =Sheet2!A:A -> 6005
L94: =Sheet2!G:G -> Jackalope Liquors | M94: =Sheet2!A:A -> 6020
L95: =Sheet2!G:G -> Jake's Liquor | M95: =Sheet2!A:A -> 6021
L96: =Sheet2!G:G -> Jimbo's Liquors | M96: =Sheet2!A:A -> 6023
L97: =Sheet2!G:G -> Jimmy's Resaturant | M97: =Sheet2!A:A -> 6024
L98: =Sheet2!G:G -> Joe's Liquors | M98: =Sheet2!A:A -> 6048
L99: =Sheet2!G:G -> Juniper | M99: =Sheet2!A:A -> 6049
L100: =Sheet2!G:G -> Karma Bar and Lounge | M100: =Sheet2!A:A -> 6051
L101: =Sheet2!G:G -> Kenosha Steakhouse | M101: =Sheet2!A:A -> 6052
L102: =Sheet2!G:G -> Kokopelli Liquor | M102: =Sheet2!A:A -> 6053
L103: =Sheet2!G:G -> L Apogee | M103: =Sheet2!A:A -> 6054
L104: =Sheet2!G:G -> La Tour Resturant | M104: =Sheet2!A:A -> 6058
L105: =Sheet2!G:G -> Lake Dillon Discount Liquors | M105: =Sheet2!A:A -> 6071
L106: =Sheet2!G:G -> Lakeside Bowl | M106: =Sheet2!A:A -> 6073
L107: =Sheet2!G:G -> Larkspur Restaurant | M107: =Sheet2!A:A -> 6074
L108: =Sheet2!G:G -> Laundry, The | M108: =Sheet2!A:A -> 6075
L109: =Sheet2!G:G -> Lionshead Liquor | M109: =Sheet2!A:A -> 6077
L110: =Sheet2!G:G -> Liquor Shed, The | M110: =Sheet2!A:A -> 6078
L111: =Sheet2!G:G -> Liquor Shop | M111: =Sheet2!A:A -> 6079
L112: =Sheet2!G:G -> Liquor Store, The | M112: =Sheet2!A:A -> 6080
L113: =Sheet2!G:G -> Little Nell | M113: =Sheet2!A:A -> 6081
L114: =Sheet2!G:G -> Loadout Liquors | M114: =Sheet2!A:A -> 6082
L115: =Sheet2!G:G -> Local Liquors | M115: =Sheet2!A:A -> 6084
L116: =Sheet2!G:G -> Local Spirits | M116: =Sheet2!A:A -> 6085
L117: =Sheet2!G:G -> Loveland Pass Liquors | M117: =Sheet2!A:A -> 6086
L118: =Sheet2!G:G -> Low Country Kitchen | M118: =Sheet2!A:A -> 6087
L119: =Sheet2!G:G -> Mac's Liquor | M119: =Sheet2!A:A -> 6088
L120: =Sheet2!G:G -> Marc's Chicago Pizza | M120: =Sheet2!A:A -> 6089
L121: =Sheet2!G:G -> Market Wine & Spirits | M121: =Sheet2!A:A -> 6090
L122: =Sheet2!G:G -> Mary's Main Street Spirits | M122: =Sheet2!A:A -> 6091
L123: =Sheet2!G:G -> Mazzola's Italian | M123: =Sheet2!A:A -> 6091
L124: =Sheet2!G:G -> Metropolitan, The | M124: =Sheet2!A:A -> 7000
L125: =Sheet2!G:G -> Minturn Mile | M125: =Sheet2!A:A -> 7001
L126: =Sheet2!G:G -> Moe's BBQ | M126: =Sheet2!A:A -> 7002
L127: =Sheet2!G:G -> Moe's Original - Breckenridge | M127: =Sheet2!A:A -> 7003
L128: =Sheet2!G:G -> Moe's Original BBQ | M128: =Sheet2!A:A -> 7004
L129: =Sheet2!G:G -> Montauk Seafood Grill | M129: =Sheet2!A:A -> 7005
L130: =Sheet2!G:G -> Monument Village Liquor | M130: =Sheet2!A:A -> 7021
L131: =Sheet2!G:G -> Moonshine Liquors | M131: =Sheet2!A:A -> 7022
L132: =Sheet2!G:G -> Nancy McGees Irish Pub | M132: =Sheet2!A:A -> 7023
L133: =Sheet2!G:G -> Northside | M133: =Sheet2!A:A -> 7024
L134: =Sheet2!G:G -> Old Chicago GJ | M134: =Sheet2!A:A -> 7025
L135: =Sheet2!G:G -> Old Chicago Silverthorne | M135: =Sheet2!A:A -> 7026
L136: =Sheet2!G:G -> Old Forge Pizza Co. - Frontage | M136: =Sheet2!A:A -> 7027
L137: =Sheet2!G:G -> Old Forge Pizza Co. - Lionshead | M137: =Sheet2!A:A -> 7028
L138: =Sheet2!G:G -> Old Forge Pizza Co. - Edwards | M138: =Sheet2!A:A -> 7030
L139: =Sheet2!G:G -> Old Town Pub | M139: =Sheet2!A:A -> 7031
L140: =Sheet2!G:G -> Ollie's Pub and Grub | M140: =Sheet2!A:A -> 7032
L141: =Sheet2!G:G -> One Ski Hill Place | M141: =Sheet2!A:A -> 7033
L142: =Sheet2!G:G -> Orehouse at the Pine Grove | M142: =Sheet2!A:A -> 7034
L143: =Sheet2!G:G -> Ouray Liquors | M143: =Sheet2!A:A -> 7035
L144: =Sheet2!G:G -> Pahgre's | M144: =Sheet2!A:A -> 7036
L145: =Sheet2!G:G -> Paonia Liquors | M145: =Sheet2!A:A -> 7037
L146: =Sheet2!G:G -> Pastatively Inc. | M146: =Sheet2!A:A -> 7038
L147: =Sheet2!G:G -> Pazzo's Pizzeria | M147: =Sheet2!A:A -> 7039
L148: =Sheet2!G:G -> Peachwood Liquor | M148: =Sheet2!A:A -> 7040
L149: =Sheet2!G:G -> Peppinos Pizza of Carbondale | M149: =Sheet2!A:A -> 7041
L150: =Sheet2!G:G -> Pete's House Of Spirits | M150: =Sheet2!A:A -> 7049
L151: =Sheet2!G:G -> Phat Thai | M151: =Sheet2!A:A -> 7050
L152: =Sheet2!G:G -> Pier 13 Liquor | M152: =Sheet2!A:A -> 7051
L153: =Sheet2!G:G -> Pizza on the Plaza | M153: =Sheet2!A:A -> 7052
L154: =Sheet2!G:G -> Plaza Liquors | M154: =Sheet2!A:A -> 7053
L155: =Sheet2!G:G -> Primavera Liquors | M155: =Sheet2!A:A -> 7054
L156: =Sheet2!G:G -> Rasta Pasta | M156: =Sheet2!A:A -> 7055
L157: =Sheet2!G:G -> Red Mountain Grill Avon | M157: =Sheet2!A:A -> 7056
L158: =Sheet2!G:G -> Red Mountain Wine & Spirits | M158: =Sheet2!A:A -> 7057
L159: =Sheet2!G:G -> Redlands Liquor | M159: =Sheet2!A:A -> 7058
L160: =Sheet2!G:G -> Relish | M160: =Sheet2!A:A -> 7059
L161: =Sheet2!G:G -> Restarurant Kelly Liken | M161: =Sheet2!A:A -> 7060
L162: =Sheet2!G:G -> Rex's | M162: =Sheet2!A:A -> 7061
L163: =Sheet2!G:G -> Rhino Liquors | M163: =Sheet2!A:A -> 7067
L164: =Sheet2!G:G -> Rio Grande Mexican Restaurant | M164: =Sheet2!A:A -> 7071
L165: =Sheet2!G:G -> Ristorante Pantuso's | M165: =Sheet2!A:A -> 7073
L166: =Sheet2!G:G -> Ristorante Ti Amo | M166: =Sheet2!A:A -> 7074
L167: =Sheet2!G:G -> Riverside Spirits | M167: =Sheet2!A:A -> 7075
L168: =Sheet2!G:G -> Riverwalk Wine & Spirits | M168: =Sheet2!A:A -> 7076
L169: =Sheet2!G:G -> Roaring Fork Club | M169: =Sheet2!A:A -> 7091
L170: =Sheet2!G:G -> Roaring Fork Liquors | M170: =Sheet2!A:A -> 7094
L171: =Sheet2!G:G -> Rockin R Ranch | M171: =Sheet2!A:A -> 7096
L172: =Sheet2!G:G -> Rocky Mountain Liquors | M172: =Sheet2!A:A -> 7098
L173: =Sheet2!G:G -> Roosters | M173: =Sheet2!A:A -> 7102
L174: =Sheet2!G:G -> Russo's Pizza | M174: =Sheet2!A:A -> 7103
L175: =Sheet2!G:G -> Rusted Porch | M175: =Sheet2!A:A -> 7204
L176: =Sheet2!G:G -> Saketumi | M176: =Sheet2!A:A -> 7227
L177: =Sheet2!G:G -> Samples - Gerardo Castillo | M177: =Sheet2!A:A -> 7230
L178: =Sheet2!G:G -> Samples - JT Krizman | M178: =Sheet2!A:A -> 7240
L179: =Sheet2!G:G -> Samples - William Lodge | M179: =Sheet2!A:A -> 7241
L180: =Sheet2!G:G -> San Juan Liquors | M180: =Sheet2!A:A -> 7242
L181: =Sheet2!G:G -> Schmiggity's | M181: =Sheet2!A:A -> 7243
L182: =Sheet2!G:G -> Sevens Restaurant | M182: =Sheet2!A:A -> 7244
L183: =Sheet2!G:G -> Sheraton Steamboat Resort | M183: =Sheet2!A:A -> 7245
L184: =Sheet2!G:G -> Silt Disount Liquor | M184: =Sheet2!A:A -> 7247
L185: =Sheet2!G:G -> Silverthorne Liquors | M185: =Sheet2!A:A -> 7248
L186: =Sheet2!G:G -> Skee Vue Liquors | M186: =Sheet2!A:A -> 7249
L187: =Sheet2!G:G -> Ski Haus Liquors | M187: =Sheet2!A:A -> 7250
L188: =Sheet2!G:G -> Ski Town Liquor | M188: =Sheet2!A:A -> 7300
L189: =Sheet2!G:G -> Sky Hotel and 39 Degrees | M189: =Sheet2!A:A -> 7301
L190: =Sheet2!G:G -> Smoke | M190: =Sheet2!A:A -> 7302
L191: =Sheet2!G:G -> Smoke Modern BBQ | M191: =Sheet2!A:A -> 7303
L192: =Sheet2!G:G -> Sopris Liquors & Wine | M192: =Sheet2!A:A -> 7304
L193: =Sheet2!G:G -> South Ridge Seafood | M193: =Sheet2!A:A -> 7400
L194: =Sheet2!G:G -> South Side Liquors | M194: =Sheet2!A:A -> 7401
L195: =Sheet2!G:G -> Spike's Liquors | M195: =Sheet2!A:A -> 7402
L196: =Sheet2!G:G -> Spirits of Newcastle | M196: =Sheet2!A:A -> 7403
L197: =Sheet2!G:G -> Steamboat Golf Club | M197: =Sheet2!A:A -> 7404
L198: =Sheet2!G:G -> Steamboat Grand | M198: =Sheet2!A:A -> 7405
L199: =Sheet2!G:G -> Summit Liquors | M199: =Sheet2!A:A -> 7406
L200: =Sheet2!G:G -> Sundance | M200: =Sheet2!A:A -> 7407
... 391 more rows

Sheet Mountain
C1: Account # | D1: =IF($D$2="","",VLOOKUP($D$2,Sheet2!G:K,2,FALSE)) ->  | L1: =Sheet2!G:G -> 626 On Rood | M1: =Sheet2!A:A -> 0
C2: Account Name: | L2: =Sheet2!G:G -> 7 Hermits Brewing Co | M2: =Sheet2!A:A -> 1000
C3: Address: | D3: =IF($D$2="","",VLOOKUP($D$2,Sheet2!G:K,3,FALSE)) ->  | L3: =Sheet2!G:G -> All Pro Liquors | M3: =Sheet2!A:A -> 1001
C4: Address 2: | D4: =IF($D$2="","",VLOOKUP($D$2,Sheet2!G:K,4,FALSE)) ->  | L4: =Sheet2!G:G -> Allegria | M4: =Sheet2!A:A -> 1002
C5: City: | D5: =IF($D$2="","",VLOOKUP($D$2,Sheet2!G:K,5,FALSE)) ->  | L5: =Sheet2!G:G -> Alpine Wine & Spirit | M5: =Sheet2!A:A -> 1003
C6: Delivery Date: | L6: =Sheet2!G:G -> Andy's Liquor Mart | M6: =Sheet2!A:A -> 1004
C7: Comments: | L7: =Sheet2!G:G -> Antlers Discount Liquors | M7: =Sheet2!A:A -> 1005
L8: =Sheet2!G:G -> Apres | M8: =Sheet2!A:A -> 1007
A9: CASES | B9: BOTTLES | C9: ITEM # | D9: DESCRIPTION | E9: FRONT LINE | F9: CASE DISCOUNT | G9: CASE PRICE | H9: BOTTLE PRICE | I9: NET | L9: =Sheet2!G:G -> Arapahoe Basin Ski Area | M9: =Sheet2!A:A -> 1008
D10: =IF(C10="","",VLOOKUP(C10,Sheet2!$A:$B,2,FALSE)) ->  | E10: =IF(C10="","",VLOOKUP(C10,Sheet2!$A:$D,4,FALSE)) ->  | G10: =IF(C10="","",E10-F10) ->  | H10: =IF(C10="","",G10/VLOOKUP(C10,Sheet2!$A:$E,5,FALSE)) ->  | I10: =IF(C10="","",(A10*G10)+(B10*H10)) ->  | L10: =Sheet2!G:G -> Arctic Liquors | M10: =Sheet2!A:A -> 1009
D11: =IF(C11="","",VLOOKUP(C11,Sheet2!$A:$B,2,FALSE)) ->  | E11: =IF(C11="","",VLOOKUP(C11,Sheet2!$A:$D,4,FALSE)) ->  | G11: =IF(C11="","",E11-F11) ->  | H11: =IF(C11="","",G11/VLOOKUP(C11,Sheet2!$A:$E,5,FALSE)) ->  | I11: =IF(C11="","",(A11*G11)+(B11*H11)) ->  | L11: =Sheet2!G:G -> Aspen Wine and Spirits | M11: =Sheet2!A:A -> 1010
D12: =IF(C12="","",VLOOKUP(C12,Sheet2!$A:$B,2,FALSE)) ->  | E12: =IF(C12="","",VLOOKUP(C12,Sheet2!$A:$D,4,FALSE)) ->  | H12: =IF(C12="","",G12/VLOOKUP(C12,Sheet2!$A:$E,5,FALSE)) ->  | L12: =Sheet2!G:G -> Aspen Wine Guild | M12: =Sheet2!A:A -> 1020
D13: =IF(C13="","",VLOOKUP(C13,Sheet2!$A:$B,2,FALSE)) ->  | E13: =IF(C13="","",VLOOKUP(C13,Sheet2!$A:$D,4,FALSE)) ->  | H13: =IF(C13="","",G13/VLOOKUP(C13,Sheet2!$A:$E,5,FALSE)) ->  | L13: =Sheet2!G:G -> Avon Liquors | M13: =Sheet2!A:A -> 1021
D14: =IF(C14="","",VLOOKUP(C14,Sheet2!$A:$B,2,FALSE)) ->  | E14: =IF(C14="","",VLOOKUP(C14,Sheet2!$A:$D,4,FALSE)) ->  | H14: =IF(C14="","",G14/VLOOKUP(C14,Sheet2!$A:$E,5,FALSE)) ->  | L14: =Sheet2!G:G -> Barley, The | M14: =Sheet2!A:A -> 1022
D15: =IF(C15="","",VLOOKUP(C15,Sheet2!$A:$B,2,FALSE)) ->  | E15: =IF(C15="","",VLOOKUP(C15,Sheet2!$A:$D,4,FALSE)) ->  | H15: =IF(C15="","",G15/VLOOKUP(C15,Sheet2!$A:$E,5,FALSE)) ->  | L15: =Sheet2!G:G -> Bart & Yeti's | M15: =Sheet2!A:A -> 1023
D16: =IF(C16="","",VLOOKUP(C16,Sheet2!$A:$B,2,FALSE)) ->  | E16: =IF(C16="","",VLOOKUP(C16,Sheet2!$A:$D,4,FALSE)) ->  | H16: =IF(C16="","",G16/VLOOKUP(C16,Sheet2!$A:$E,5,FALSE)) ->  | L16: =Sheet2!G:G -> Beaver Liquors | M16: =Sheet2!A:A -> 1024
D17: =IF(C17="","",VLOOKUP(C17,Sheet2!$A:$B,2,FALSE)) ->  | E17: =IF(C17="","",VLOOKUP(C17,Sheet2!$A:$D,4,FALSE)) ->  | H17: =IF(C17="","",G17/VLOOKUP(C17,Sheet2!$A:$E,5,FALSE)) ->  | L17: =Sheet2!G:G -> Big House Burgers | M17: =Sheet2!A:A -> 1109
D18: =IF(C18="","",VLOOKUP(C18,Sheet2!$A:$B,2,FALSE)) ->  | E18: =IF(C18="","",VLOOKUP(C18,Sheet2!$A:$D,4,FALSE)) ->  | H18: =IF(C18="","",G18/VLOOKUP(C18,Sheet2!$A:$E,5,FALSE)) ->  | L18: =Sheet2!G:G -> Bistro CV | M18: =Sheet2!A:A -> 1209
D19: =IF(C19="","",VLOOKUP(C19,Sheet2!$A:$B,2,FALSE)) ->  | E19: =IF(C19="","",VLOOKUP(C19,Sheet2!$A:$D,4,FALSE)) ->  | H19: =IF(C19="","",G19/VLOOKUP(C19,Sheet2!$A:$E,5,FALSE)) ->  | L19: =Sheet2!G:G -> Black Diamond Bistro | M19: =Sheet2!A:A -> 1220
D20: =IF(C20="","",VLOOKUP(C20,Sheet2!$A:$B,2,FALSE)) ->  | E20: =IF(C20="","",VLOOKUP(C20,Sheet2!$A:$D,4,FALSE)) ->  | H20: =IF(C20="","",G20/VLOOKUP(C20,Sheet2!$A:$E,5,FALSE)) ->  | L20: =Sheet2!G:G -> Blu's | M20: =Sheet2!A:A -> 1406
D21: =IF(C21="","",VLOOKUP(C21,Sheet2!$A:$B,2,FALSE)) ->  | E21: =IF(C21="","",VLOOKUP(C21,Sheet2!$A:$D,4,FALSE)) ->  | H21: =IF(C21="","",G21/VLOOKUP(C21,Sheet2!$A:$E,5,FALSE)) ->  | L21: =Sheet2!G:G -> Bookcliff Country Club | M21: =Sheet2!A:A -> 1450
D22: =IF(C22="","",VLOOKUP(C22,Sheet2!$A:$B,2,FALSE)) ->  | E22: =IF(C22="","",VLOOKUP(C22,Sheet2!$A:$D,4,FALSE)) ->  | H22: =IF(C22="","",G22/VLOOKUP(C22,Sheet2!$A:$E,5,FALSE)) ->  | L22: =Sheet2!G:G -> Bookcliff Liquors | M22: =Sheet2!A:A -> 1510
D23: =IF(C23="","",VLOOKUP(C23,Sheet2!$A:$B,2,FALSE)) ->  | E23: =IF(C23="","",VLOOKUP(C23,Sheet2!$A:$D,4,FALSE)) ->  | H23: =IF(C23="","",G23/VLOOKUP(C23,Sheet2!$A:$E,5,FALSE)) ->  | L23: =Sheet2!G:G -> Bottle Pass Liquors | M23: =Sheet2!A:A -> 1515
D24: =IF(C24="","",VLOOKUP(C24,Sheet2!$A:$B,2,FALSE)) ->  | E24: =IF(C24="","",VLOOKUP(C24,Sheet2!$A:$D,4,FALSE)) ->  | H24: =IF(C24="","",G24/VLOOKUP(C24,Sheet2!$A:$E,5,FALSE)) ->  | L24: =Sheet2!G:G -> Bottle Shop Liquor | M24: =Sheet2!A:A -> 1550
D25: =IF(C25="","",VLOOKUP(C25,Sheet2!$A:$B,2,FALSE)) ->  | E25: =IF(C25="","",VLOOKUP(C25,Sheet2!$A:$D,4,FALSE)) ->  | H25: =IF(C25="","",G25/VLOOKUP(C25,Sheet2!$A:$E,5,FALSE)) ->  | L25: =Sheet2!G:G -> Breckenridge Ale House | M25: =Sheet2!A:A -> 1551
D26: =IF(C26="","",VLOOKUP(C26,Sheet2!$A:$B,2,FALSE)) ->  | E26: =IF(C26="","",VLOOKUP(C26,Sheet2!$A:$D,4,FALSE)) ->  | H26: =IF(C26="","",G26/VLOOKUP(C26,Sheet2!$A:$E,5,FALSE)) ->  | L26: =Sheet2!G:G -> Broadway Liquors | M26: =Sheet2!A:A -> 2006
D27: =IF(C27="","",VLOOKUP(C27,Sheet2!$A:$B,2,FALSE)) ->  | E27: =IF(C27="","",VLOOKUP(C27,Sheet2!$A:$D,4,FALSE)) ->  | H27: =IF(C27="","",G27/VLOOKUP(C27,Sheet2!$A:$E,5,FALSE)) ->  | L27: =Sheet2!G:G -> C&H Spirit Solutions | M27: =Sheet2!A:A -> 2058
D28: =IF(C28="","",VLOOKUP(C28,Sheet2!$A:$B,2,FALSE)) ->  | E28: =IF(C28="","",VLOOKUP(C28,Sheet2!$A:$D,4,FALSE)) ->  | H28: =IF(C28="","",G28/VLOOKUP(C28,Sheet2!$A:$E,5,FALSE)) ->  | L28: =Sheet2!G:G -> Carelli's Pizzeria | M28: =Sheet2!A:A -> 3008
D29: =IF(C29="","",VLOOKUP(C29,Sheet2!$A:$B,2,FALSE)) ->  | E29: =IF(C29="","",VLOOKUP(C29,Sheet2!$A:$D,4,FALSE)) ->  | H29: =IF(C29="","",G29/VLOOKUP(C29,Sheet2!$A:$E,5,FALSE)) ->  | L29: =Sheet2!G:G -> Carl's Pharmacy | M29: =Sheet2!A:A -> 3081
H30: Total: | I30: =SUM(I10:I29) -> 0 | L30: =Sheet2!G:G -> Carl's Tavern | M30: =Sheet2!A:A -> 3082
L31: =Sheet2!G:G -> Cellar Liquors | M31: =Sheet2!A:A -> 3083
L32: =Sheet2!G:G -> Center Town Liquors | M32: =Sheet2!A:A -> 3091
L33: =Sheet2!G:G -> Central Park Liquors | M33: =Sheet2!A:A -> 3092
L34: =Sheet2!G:G -> Cheeky Monk | M34: =Sheet2!A:A -> 3093
L35: =Sheet2!G:G -> Choice Liquor | M35: =Sheet2!A:A -> 4001
L36: =Sheet2!G:G -> Circle R Bar | M36: =Sheet2!A:A -> 4002
L37: =Sheet2!G:G -> Citrolas Italian Grill & Bar | M37: =Sheet2!A:A -> 4003
L38: =Sheet2!G:G -> City Liquors | M38: =Sheet2!A:A -> 4025
L39: =Sheet2!G:G -> Clifton Liquors | M39: =Sheet2!A:A -> 4051
L40: =Sheet2!G:G -> College Liquors | M40: =Sheet2!A:A -> 4052
L41: =Sheet2!G:G -> Cooper Wine & Spirits | M41: =Sheet2!A:A -> 4053
L42: =Sheet2!G:G -> Cork's Fine Wines | M42: =Sheet2!A:A -> 4055
L43: =Sheet2!G:G -> Coronado Liquors | M43: =Sheet2!A:A -> 4056
L44: =Sheet2!G:G -> Cottonwood Liquors | M44: =Sheet2!A:A -> 4057
L45: =Sheet2!G:G -> Country Club liquors | M45: =Sheet2!A:A -> 4058
L46: =Sheet2!G:G -> Coyote Café | M46: =Sheet2!A:A -> 4059
L47: =Sheet2!G:G -> Crossroads Wine & Spirit | M47: =Sheet2!A:A -> 4060
L48: =Sheet2!G:G -> Davetos Italian Restaurant | M48: =Sheet2!A:A -> 4061
L49: =Sheet2!G:G -> Devil's Thumb Ranch | M49: =Sheet2!A:A -> 4062
L50: =Sheet2!G:G -> Dillon Ridge Liquors | M50: =Sheet2!A:A -> 4063
L51: =Sheet2!G:G -> Dolce Vita | M51: =Sheet2!A:A -> 4064
L52: =Sheet2!G:G -> Double Diamonds Bar | M52: =Sheet2!A:A -> 4065
L53: =Sheet2!G:G -> Eagle liiquor Mart | M53: =Sheet2!A:A -> 4090
L54: =Sheet2!G:G -> Eagle Ranch Wine & Spirits | M54: =Sheet2!A:A -> 4091
L55: =Sheet2!G:G -> East Valley Liquors | M55: =Sheet2!A:A -> 4092
L56: =Sheet2!G:G -> Eastside Liquor | M56: =Sheet2!A:A -> 4095
L57: =Sheet2!G:G -> El Horizonte | M57: =Sheet2!A:A -> 5000
L58: =Sheet2!G:G -> El Jebeverage | M58: =Sheet2!A:A -> 5001
L59: =Sheet2!G:G -> Elk Camp Restaurant | M59: =Sheet2!A:A -> 5002
L60: =Sheet2!G:G -> Elmer Suds Liquor | M60: =Sheet2!A:A -> 5003
L61: =Sheet2!G:G -> Elway's | M61: =Sheet2!A:A -> 5004
L62: =Sheet2!G:G -> Ember | M62: =Sheet2!A:A -> 5009
L63: =Sheet2!G:G -> Enterprize Liquor | M63: =Sheet2!A:A -> 5040
L64: =Sheet2!G:G -> Enzo's | M64: =Sheet2!A:A -> 5041
L65: =Sheet2!G:G -> Enzo's Pizza Shack | M65: =Sheet2!A:A -> 5051
L66: =Sheet2!G:G -> Eureka Mediterranean Street Food | M66: =Sheet2!A:A -> 5052
L67: =Sheet2!G:G -> Fariground Wine & Liquor | M67: =Sheet2!A:A -> 5053
L68: =Sheet2!G:G -> Finbarr's | M68: =Sheet2!A:A -> 5054
L69: =Sheet2!G:G -> Finbarr's Irish Pub and Kitchen | M69: =Sheet2!A:A -> 5055
L70: =Sheet2!G:G -> Fisher's Liquor Barn | M70: =Sheet2!A:A -> 5056
L71: =Sheet2!G:G -> Flights & Pints Tasting Room | M71: =Sheet2!A:A -> 5057
L72: =Sheet2!G:G -> Fly-N-Roosters | M72: =Sheet2!A:A -> 5058
L73: =Sheet2!G:G -> Four Dogs Wine & Spirits | M73: =Sheet2!A:A -> 5059
L74: =Sheet2!G:G -> Four Seasons Vail | M74: =Sheet2!A:A -> 5070
L75: =Sheet2!G:G -> Frisco Liquors | M75: =Sheet2!A:A -> 5071
L76: =Sheet2!G:G -> Frisco Wine Merchant | M76: =Sheet2!A:A -> 5072
L77: =Sheet2!G:G -> Fruita Liquor Mart | M77: =Sheet2!A:A -> 5076
L78: =Sheet2!G:G -> Fun Junction Liquors | M78: =Sheet2!A:A -> 5077
L79: =Sheet2!G:G -> Geno's | M79: =Sheet2!A:A -> 5078
L80: =Sheet2!G:G -> Glenwood Canyon Brew Pub | M80: =Sheet2!A:A -> 5079
L81: =Sheet2!G:G -> Grand Avenue Liquors | M81: =Sheet2!A:A -> 5080
L82: =Sheet2!G:G -> Grappa | M82: =Sheet2!A:A -> 5081
L83: =Sheet2!G:G -> Great Western Grog Shop | M83: =Sheet2!A:A -> 5082
L84: =Sheet2!G:G -> Greco's | M84: =Sheet2!A:A -> 5083
L85: =Sheet2!G:G -> Grouse Montain Grill | M85: =Sheet2!A:A -> 5084
L86: =Sheet2!G:G -> Gypsum Liquors | M86: =Sheet2!A:A -> 5086
L87: =Sheet2!G:G -> Hooked | M87: =Sheet2!A:A -> 5087
L88: =Sheet2!G:G -> Hooters (Grand Jct.) | M88: =Sheet2!A:A -> 5088
L89: =Sheet2!G:G -> Hops Culture | M89: =Sheet2!A:A -> 6000
L90: =Sheet2!G:G -> Horizon Liquors | M90: =Sheet2!A:A -> 6001
L91: =Sheet2!G:G -> Hotel Jerome | M91: =Sheet2!A:A -> 6002
L92: =Sheet2!G:G -> In the Middle Liquors | M92: =Sheet2!A:A -> 6003
L93: =Sheet2!G:G -> Italian Underground | M93: =Sheet2!A:A -> 6005
L94: =Sheet2!G:G -> Jackalope Liquors | M94: =Sheet2!A:A -> 6020
L95: =Sheet2!G:G -> Jake's Liquor | M95: =Sheet2!A:A -> 6021
L96: =Sheet2!G:G -> Jimbo's Liquors | M96: =Sheet2!A:A -> 6023
L97: =Sheet2!G:G -> Jimmy's Resaturant | M97: =Sheet2!A:A -> 6024
L98: =Sheet2!G:G -> Joe's Liquors | M98: =Sheet2!A:A -> 6048
L99: =Sheet2!G:G -> Juniper | M99: =Sheet2!A:A -> 6049
L100: =Sheet2!G:G -> Karma Bar and Lounge | M100: =Sheet2!A:A -> 6051
L101: =Sheet2!G:G -> Kenosha Steakhouse | M101: =Sheet2!A:A -> 6052
L102: =Sheet2!G:G -> Kokopelli Liquor | M102: =Sheet2!A:A -> 6053
L103: =Sheet2!G:G -> L Apogee | M103: =Sheet2!A:A -> 6054
L104: =Sheet2!G:G -> La Tour Resturant | M104: =Sheet2!A:A -> 6058
L105: =Sheet2!G:G -> Lake Dillon Discount Liquors | M105: =Sheet2!A:A -> 6071
L106: =Sheet2!G:G -> Lakeside Bowl | M106: =Sheet2!A:A -> 6073
L107: =Sheet2!G:G -> Larkspur Restaurant | M107: =Sheet2!A:A -> 6074
L108: =Sheet2!G:G -> Laundry, The | M108: =Sheet2!A:A -> 6075
L109: =Sheet2!G:G -> Lionshead Liquor | M109: =Sheet2!A:A -> 6077
L110: =Sheet2!G:G -> Liquor Shed, The | M110: =Sheet2!A:A -> 6078
L111: =Sheet2!G:G -> Liquor Shop | M111: =Sheet2!A:A -> 6079
L112: =Sheet2!G:G -> Liquor Store, The | M112: =Sheet2!A:A -> 6080
L113: =Sheet2!G:G -> Little Nell | M113: =Sheet2!A:A -> 6081
L114: =Sheet2!G:G -> Loadout Liquors | M114: =Sheet2!A:A -> 6082
L115: =Sheet2!G:G -> Local Liquors | M115: =Sheet2!A:A -> 6084
L116: =Sheet2!G:G -> Local Spirits | M116: =Sheet2!A:A -> 6085
L117: =Sheet2!G:G -> Loveland Pass Liquors | M117: =Sheet2!A:A -> 6086
L118: =Sheet2!G:G -> Low Country Kitchen | M118: =Sheet2!A:A -> 6087
L119: =Sheet2!G:G -> Mac's Liquor | M119: =Sheet2!A:A -> 6088
L120: =Sheet2!G:G -> Marc's Chicago Pizza | M120: =Sheet2!A:A -> 6089
L121: =Sheet2!G:G -> Market Wine & Spirits | M121: =Sheet2!A:A -> 6090
L122: =Sheet2!G:G -> Mary's Main Street Spirits | M122: =Sheet2!A:A -> 6091
L123: =Sheet2!G:G -> Mazzola's Italian | M123: =Sheet2!A:A -> 6091
L124: =Sheet2!G:G -> Metropolitan, The | M124: =Sheet2!A:A -> 7000
L125: =Sheet2!G:G -> Minturn Mile | M125: =Sheet2!A:A -> 7001
L126: =Sheet2!G:G -> Moe's BBQ | M126: =Sheet2!A:A -> 7002
L127: =Sheet2!G:G -> Moe's Original - Breckenridge | M127: =Sheet2!A:A -> 7003
L128: =Sheet2!G:G -> Moe's Original BBQ | M128: =Sheet2!A:A -> 7004
L129: =Sheet2!G:G -> Montauk Seafood Grill | M129: =Sheet2!A:A -> 7005
L130: =Sheet2!G:G -> Monument Village Liquor | M130: =Sheet2!A:A -> 7021
L131: =Sheet2!G:G -> Moonshine Liquors | M131: =Sheet2!A:A -> 7022
L132: =Sheet2!G:G -> Nancy McGees Irish Pub | M132: =Sheet2!A:A -> 7023
L133: =Sheet2!G:G -> Northside | M133: =Sheet2!A:A -> 7024
L134: =Sheet2!G:G -> Old Chicago GJ | M134: =Sheet2!A:A -> 7025
L135: =Sheet2!G:G -> Old Chicago Silverthorne | M135: =Sheet2!A:A -> 7026
L136: =Sheet2!G:G -> Old Forge Pizza Co. - Frontage | M136: =Sheet2!A:A -> 7027
L137: =Sheet2!G:G -> Old Forge Pizza Co. - Lionshead | M137: =Sheet2!A:A -> 7028
L138: =Sheet2!G:G -> Old Forge Pizza Co. - Edwards | M138: =Sheet2!A:A -> 7030
L139: =Sheet2!G:G -> Old Town Pub | M139: =Sheet2!A:A -> 7031
L140: =Sheet2!G:G -> Ollie's Pub and Grub | M140: =Sheet2!A:A -> 7032
L141: =Sheet2!G:G -> One Ski Hill Place | M141: =Sheet2!A:A -> 7033
L142: =Sheet2!G:G -> Orehouse at the Pine Grove | M142: =Sheet2!A:A -> 7034
L143: =Sheet2!G:G -> Ouray Liquors | M143: =Sheet2!A:A -> 7035
L144: =Sheet2!G:G -> Pahgre's | M144: =Sheet2!A:A -> 7036
L145: =Sheet2!G:G -> Paonia Liquors | M145: =Sheet2!A:A -> 7037
L146: =Sheet2!G:G -> Pastatively Inc. | M146: =Sheet2!A:A -> 7038
L147: =Sheet2!G:G -> Pazzo's Pizzeria | M147: =Sheet2!A:A -> 7039
L148: =Sheet2!G:G -> Peachwood Liquor | M148: =Sheet2!A:A -> 7040
L149: =Sheet2!G:G -> Peppinos Pizza of Carbondale | M149: =Sheet2!A:A -> 7041
L150: =Sheet2!G:G -> Pete's House Of Spirits | M150: =Sheet2!A:A -> 7049
L151: =Sheet2!G:G -> Phat Thai | M151: =Sheet2!A:A -> 7050
L152: =Sheet2!G:G -> Pier 13 Liquor | M152: =Sheet2!A:A -> 7051
L153: =Sheet2!G:G -> Pizza on the Plaza | M153: =Sheet2!A:A -> 7052
L154: =Sheet2!G:G -> Plaza Liquors | M154: =Sheet2!A:A -> 7053
L155: =Sheet2!G:G -> Primavera Liquors | M155: =Sheet2!A:A -> 7054
L156: =Sheet2!G:G -> Rasta Pasta | M156: =Sheet2!A:A -> 7055
L157: =Sheet2!G:G -> Red Mountain Grill Avon | M157: =Sheet2!A:A -> 7056
L158: =Sheet2!G:G -> Red Mountain Wine & Spirits | M158: =Sheet2!A:A -> 7057
L159: =Sheet2!G:G -> Redlands Liquor | M159: =Sheet2!A:A -> 7058
L160: =Sheet2!G:G -> Relish | M160: =Sheet2!A:A -> 7059
L161: =Sheet2!G:G -> Restarurant Kelly Liken | M161: =Sheet2!A:A -> 7060
L162: =Sheet2!G:G -> Rex's | M162: =Sheet2!A:A -> 7061
L163: =Sheet2!G:G -> Rhino Liquors | M163: =Sheet2!A:A -> 7067
L164: =Sheet2!G:G -> Rio Grande Mexican Restaurant | M164: =Sheet2!A:A -> 7071
L165: =Sheet2!G:G -> Ristorante Pantuso's | M165: =Sheet2!A:A -> 7073
L166: =Sheet2!G:G -> Ristorante Ti Amo | M166: =Sheet2!A:A -> 7074
L167: =Sheet2!G:G -> Riverside Spirits | M167: =Sheet2!A:A -> 7075
L168: =Sheet2!G:G -> Riverwalk Wine & Spirits | M168: =Sheet2!A:A -> 7076
L169: =Sheet2!G:G -> Roaring Fork Club | M169: =Sheet2!A:A -> 7091
L170: =Sheet2!G:G -> Roaring Fork Liquors | M170: =Sheet2!A:A -> 7094
L171: =Sheet2!G:G -> Rockin R Ranch | M171: =Sheet2!A:A -> 7096
L172: =Sheet2!G:G -> Rocky Mountain Liquors | M172: =Sheet2!A:A -> 7098
L173: =Sheet2!G:G -> Roosters | M173: =Sheet2!A:A -> 7102
L174: =Sheet2!G:G -> Russo's Pizza | M174: =Sheet2!A:A -> 7103
L175: =Sheet2!G:G -> Rusted Porch | M175: =Sheet2!A:A -> 7204
L176: =Sheet2!G:G -> Saketumi | M176: =Sheet2!A:A -> 7227
L177: =Sheet2!G:G -> Samples - Gerardo Castillo | M177: =Sheet2!A:A -> 7230
L178: =Sheet2!G:G -> Samples - JT Krizman | M178: =Sheet2!A:A -> 7240
L179: =Sheet2!G:G -> Samples - William Lodge | M179: =Sheet2!A:A -> 7241
L180: =Sheet2!G:G -> San Juan Liquors | M180: =Sheet2!A:A -> 7242
L181: =Sheet2!G:G -> Schmiggity's | M181: =Sheet2!A:A -> 7243
L182: =Sheet2!G:G -> Sevens Restaurant | M182: =Sheet2!A:A -> 7244
L183: =Sheet2!G:G -> Sheraton Steamboat Resort | M183: =Sheet2!A:A -> 7245
L184: =Sheet2!G:G -> Silt Disount Liquor | M184: =Sheet2!A:A -> 7247
L185: =Sheet2!G:G -> Silverthorne Liquors | M185: =Sheet2!A:A -> 7248
L186: =Sheet2!G:G -> Skee Vue Liquors | M186: =Sheet2!A:A -> 7249
L187: =Sheet2!G:G -> Ski Haus Liquors | M187: =Sheet2!A:A -> 7250
L188: =Sheet2!G:G -> Ski Town Liquor | M188: =Sheet2!A:A -> 7300
L189: =Sheet2!G:G -> Sky Hotel and 39 Degrees | M189: =Sheet2!A:A -> 7301
L190: =Sheet2!G:G -> Smoke | M190: =Sheet2!A:A -> 7302
L191: =Sheet2!G:G -> Smoke Modern BBQ | M191: =Sheet2!A:A -> 7303
L192: =Sheet2!G:G -> Sopris Liquors & Wine | M192: =Sheet2!A:A -> 7304
L193: =Sheet2!G:G -> South Ridge Seafood | M193: =Sheet2!A:A -> 7400
L194: =Sheet2!G:G -> South Side Liquors | M194: =Sheet2!A:A -> 7401
L195: =Sheet2!G:G -> Spike's Liquors | M195: =Sheet2!A:A -> 7402
L196: =Sheet2!G:G -> Spirits of Newcastle | M196: =Sheet2!A:A -> 7403
L197: =Sheet2!G:G -> Steamboat Golf Club | M197: =Sheet2!A:A -> 7404
L198: =Sheet2!G:G -> Steamboat Grand | M198: =Sheet2!A:A -> 7405
L199: =Sheet2!G:G -> Summit Liquors | M199: =Sheet2!A:A -> 7406
L200: =Sheet2!G:G -> Sundance | M200: =Sheet2!A:A -> 7407
... 390 more rows

Sheet Sheet2
C1: Denver | D1: Mountain | G1: 626 On Rood | H1: 70082 | I1: 626 On Rood | K1: Grand Junction
A2: 1000 | B2: La Famiglia Chardonnay 12/750m | C2: =VLOOKUP(A2,'[1]October 2011'!$A:$T,20,FALSE) -> 75.48 | D2: =VLOOKUP(A2,'[1]Mountain Pricing'!$A:$T,20,FALSE) -> 88.32 | E2: =VLOOKUP(A2,'[1]October 2011'!$A:$C,3,FALSE) -> 12 | G2: 7 Hermits Brewing Co | H2: 70208 | I2: 717 Sylvan Lake Rd | K2: Eagle
A3: 1001 | B3: La Famiglia Cabernet 12/750ml | C3: =VLOOKUP(A3,'[1]October 2011'!$A:$T,20,FALSE) -> 75.48 | D3: =VLOOKUP(A3,'[1]Mountain Pricing'!$A:$T,20,FALSE) -> 88.32 | E3: =VLOOKUP(A3,'[1]October 2011'!$A:$C,3,FALSE) -> 12 | G3: All Pro Liquors | H3: 70000 | I3: 2914 F Rd. Unit 104 | K3: Grand Junction
A4: 1002 | B4: La Famiglia Merlot 12/750ml | C4: =VLOOKUP(A4,'[1]October 2011'!$A:$T,20,FALSE) -> 75.48 | D4: =VLOOKUP(A4,'[1]Mountain Pricing'!$A:$T,20,FALSE) -> 88.32 | E4: =VLOOKUP(A4,'[1]October 2011'!$A:$C,3,FALSE) -> 12 | G4: Allegria | H4: 70153 | I4: 335 Main St. | K4: Carbondale
A5: 1003 | B5: La Famiglia Pinot Grigio 12/75 | C5: =VLOOKUP(A5,'[1]October 2011'!$A:$T,20,FALSE) -> 75.48 | D5: =VLOOKUP(A5,'[1]Mountain Pricing'!$A:$T,20,FALSE) -> 88.32 | E5: =VLOOKUP(A5,'[1]October 2011'!$A:$C,3,FALSE) -> 12 | G5: Alpine Wine & Spirit | H5: 70117 | I5: 2109 N Frontage Rd | K5: Vail
A6: 1004 | B6: La Famiglia Petite Sirah 12/75 | C6: =VLOOKUP(A6,'[1]October 2011'!$A:$T,20,FALSE) -> 75.48 | D6: =VLOOKUP(A6,'[1]Mountain Pricing'!$A:$T,20,FALSE) -> 88.32 | E6: =VLOOKUP(A6,'[1]October 2011'!$A:$C,3,FALSE) -> 12 | G6: Andy's Liquor Mart | H6: 70001 | I6: 922 N First St. | K6: Grand Junction
A7: 1005 | B7: La Famiglia Pinot Noir 12/750m | C7: =VLOOKUP(A7,'[1]October 2011'!$A:$T,20,FALSE) -> 92.28 | D7: =VLOOKUP(A7,'[1]Mountain Pricing'!$A:$T,20,FALSE) -> 104.4 | E7: =VLOOKUP(A7,'[1]October 2011'!$A:$C,3,FALSE) -> 12 | G7: Antlers Discount Liquors | H7: 70205 | I7: 842 N Summit Blvd | K7: Frisco
A8: 1007 | B8: La Famiglia Rosso 12/750ml | C8: =VLOOKUP(A8,'[1]October 2011'!$A:$T,20,FALSE) -> 75.48 | D8: =VLOOKUP(A8,'[1]Mountain Pricing'!$A:$T,20,FALSE) -> 88.32 | E8: =VLOOKUP(A8,'[1]October 2011'!$A:$C,3,FALSE) -> 12 | G8: Apres | H8: 70200 | I8: 130 S. Main St. | K8: Breckenridge
A9: 1008 | B9: La Famiglia Rosso Dolce 12/750ml | C9: =VLOOKUP(A9,'[1]October 2011'!$A:$T,20,FALSE) -> 75.48 | D9: =VLOOKUP(A9,'[1]Mountain Pricing'!$A:$T,20,FALSE) -> 88.32 | E9: =VLOOKUP(A9,'[1]October 2011'!$A:$C,3,FALSE) -> 12 | G9: Arapahoe Basin Ski Area | H9: 70135 | I9: 28194 US Hwy 6 | K9: Keystone
A10: 1009 | B10: La Famiglia Sauvignon Blanc 12/750ml | C10: =VLOOKUP(A10,'[1]October 2011'!$A:$T,20,FALSE) -> 75.48 | D10: =VLOOKUP(A10,'[1]Mountain Pricing'!$A:$T,20,FALSE) -> 88.32 | E10: =VLOOKUP(A10,'[1]October 2011'!$A:$C,3,FALSE) -> 12 | G10: Arctic Liquors | H10: 70101 | I10: 2093 Curve Plaza C-104 | K10: Steamboat Springs
A11: 1010 | B11: La Famiglia Zinfandel 12/750ml | C11: =VLOOKUP(A11,'[1]October 2011'!$A:$T,20,FALSE) -> 75.48 | D11: =VLOOKUP(A11,'[1]Mountain Pricing'!$A:$T,20,FALSE) -> 88.32 | E11: =VLOOKUP(A11,'[1]October 2011'!$A:$C,3,FALSE) -> 12 | G11: Aspen Wine and Spirits | H11: 70002 | I11: 300 Puppy Smith Rd. | K11: Aspen
A12: 1020 | B12: Black Diamond Merlot 12/750 ml | C12: =VLOOKUP(A12,'[1]October 2011'!$A:$T,20,FALSE) -> 159.48 | D12: =VLOOKUP(A12,'[1]Mountain Pricing'!$A:$T,20,FALSE) -> 160.68 | E12: =VLOOKUP(A12,'[1]October 2011'!$A:$C,3,FALSE) -> 12 | G12: Aspen Wine Guild | H12: 70121 | I12: 319 Hopkins Ave. | K12: Aspen
A13: 1021 | B13: Black Diamond DC Cab 12/750ml | C13: =VLOOKUP(A13,'[1]October 2011'!$A:$T,20,FALSE) -> 159.48 | D13: =VLOOKUP(A13,'[1]Mountain Pricing'!$A:$T,20,FALSE) -> 160.68 | E13: =VLOOKUP(A13,'[1]October 2011'!$A:$C,3,FALSE) -> 12 | G13: Avon Liquors | H13: 70003 | I13: PO Box 1487 | J13: 100 W Beaver Creek Blvd. | K13: Avon
A14: 1022 | B14: Black Diamond Pinot Noir 12/750ml | C14: =VLOOKUP(A14,'[1]October 2011'!$A:$T,20,FALSE) -> 159.48 | D14: =VLOOKUP(A14,'[1]Mountain Pricing'!$A:$T,20,FALSE) -> 160.68 | E14: =VLOOKUP(A14,'[1]October 2011'!$A:$C,3,FALSE) -> 12 | G14: Barley, The | H14: 70241 | I14: 635 Lincoln Ave. | K14: Steamboat Springs
A15: 1023 | B15: Black Diamond Zinfandel 12/750ml | C15: =VLOOKUP(A15,'[1]October 2011'!$A:$T,20,FALSE) -> 159.48 | D15: =VLOOKUP(A15,'[1]Mountain Pricing'!$A:$T,20,FALSE) -> 160.68 | E15: =VLOOKUP(A15,'[1]October 2011'!$A:$C,3,FALSE) -> 12 | G15: Bart & Yeti's | H15: 70090 | I15: 551 E. Lionshead Cr. | K15: Vail
A16: 1024 | B16: Black Diamond Chardonnay 12/750 ml | C16: =VLOOKUP(A16,'[1]October 2011'!$A:$T,20,FALSE) -> 142.68 | D16: =VLOOKUP(A16,'[1]Mountain Pricing'!$A:$T,20,FALSE) -> 144.72 | E16: =VLOOKUP(A16,'[1]October 2011'!$A:$C,3,FALSE) -> 12 | G16: Beaver Liquors | H16: 70004 | I16: PO Box 488 | J16: 110 E Bever Creek Blvd. | K16: Avon
A17: 1109 | B17: Guadagni Chianti 12/750ml | C17: =VLOOKUP(A17,'[1]October 2011'!$A:$T,20,FALSE) -> 100.68 | D17: =VLOOKUP(A17,'[1]Mountain Pricing'!$A:$T,20,FALSE) -> 104.4 | E17: =VLOOKUP(A17,'[1]October 2011'!$A:$C,3,FALSE) -> 12 | G17: Big House Burgers | H17: 70188 | I17: 2093 Curve Plaza C-101 | K17: Steamboat Springs
A18: 1209 | B18: Guadagni Chianti Straw 09 12/7 | C18: =VLOOKUP(A18,'[1]October 2011'!$A:$T,20,FALSE) -> 117.48 | D18: =VLOOKUP(A18,'[1]Mountain Pricing'!$A:$T,20,FALSE) -> 120.48 | E18: =VLOOKUP(A18,'[1]October 2011'!$A:$C,3,FALSE) -> 12 | G18: Bistro CV | H18: 70108 | I18: 345 Lincoln Ave | K18: Steamboat Springs
A19: 1220 | B19: Guadagni Chianti Classico 12/750 ml | C19: =VLOOKUP(A19,'[1]October 2011'!$A:$T,20,FALSE) -> 125.88 | D19: =VLOOKUP(A19,'[1]Mountain Pricing'!$A:$T,20,FALSE) -> 128.56 | E19: =VLOOKUP(A19,'[1]October 2011'!$A:$C,3,FALSE) -> 12 | G19: Black Diamond Bistro | H19: 70119 | I19: 120 Offerson Rd. | K19: Avon
A20: 1406 | B20: Guadagni Arielle 12/750ml | C20: =VLOOKUP(A20,'[1]October 2011'!$A:$T,20,FALSE) -> 134.28 | D20: =VLOOKUP(A20,'[1]Mountain Pricing'!$A:$T,20,FALSE) -> 136.56 | E20: =VLOOKUP(A20,'[1]October 2011'!$A:$C,3,FALSE) -> 12 | G20: Blu's | H20: 70005 | I20: 193 E Gore Creek Dr. | K20: Vail
A21: 1450 | B21: Guadagni Rose 12/750ml | C21: =VLOOKUP(A21,'[1]October 2011'!$A:$T,20,FALSE) -> 109.08 | D21: =VLOOKUP(A21,'[1]Mountain Pricing'!$A:$T,20,FALSE) -> 112.44 | E21: =VLOOKUP(A21,'[1]October 2011'!$A:$C,3,FALSE) -> 12 | G21: Bookcliff Country Club | H21: 70075 | I21: 2730 G Road | K21: Grand Junction
A22: 1510 | B22: Guadagni Orvieto 12/750ml | C22: =VLOOKUP(A22,'[1]October 2011'!$A:$T,20,FALSE) -> 92.28 | D22: =VLOOKUP(A22,'[1]Mountain Pricing'!$A:$T,20,FALSE) -> 96.36 | E22: =VLOOKUP(A22,'[1]October 2011'!$A:$C,3,FALSE) -> 12 | G22: Bookcliff Liquors | H22: 70068 | I22: 3026 Patterson Rd. | K22: Grand Junction
A23: 1515 | B23: Guadagni Lago di Corbara | C23: =VLOOKUP(A23,'[1]October 2011'!$A:$T,20,FALSE) -> 159.48 | D23: =VLOOKUP(A23,'[1]Mountain Pricing'!$A:$T,20,FALSE) -> 160.72 | E23: =VLOOKUP(A23,'[1]October 2011'!$A:$C,3,FALSE) -> 12 | G23: Bottle Pass Liquors | H23: 70231 | I23: 35 county Rd 804 Unit 1A | K23: Fraser
A24: 1550 | B24: Palazzo Sangiovese | C24: =VLOOKUP(A24,'[1]October 2011'!$A:$T,20,FALSE) -> 109.2 | D24: =VLOOKUP(A24,'[1]Mountain Pricing'!$A:$T,20,FALSE) -> 112.44 | E24: =VLOOKUP(A24,'[1]October 2011'!$A:$C,3,FALSE) -> 12 | G24: Bottle Shop Liquor | H24: 70214 | I24: 40 Cove Blvd Unit C1 | K24: Dillon
A25: 1551 | B25: Palazzo Pinot Grigio | C25: =VLOOKUP(A25,'[1]October 2011'!$A:$T,20,FALSE) -> 109.2 | D25: =VLOOKUP(A25,'[1]Mountain Pricing'!$A:$T,20,FALSE) -> 112.44 | E25: =VLOOKUP(A25,'[1]October 2011'!$A:$C,3,FALSE) -> 12 | G25: Breckenridge Ale House | H25: 70006 | I25: 2531 N 12th St. | K25: Grand Junction
A26: 2006 | B26: Torre di Ciardo 12/750ml | C26: =VLOOKUP(A26,'[1]October 2011'!$A:$T,20,FALSE) -> 159.48 | D26: =VLOOKUP(A26,'[1]Mountain Pricing'!$A:$T,20,FALSE) -> 160.72 | E26: =VLOOKUP(A26,'[1]October 2011'!$A:$C,3,FALSE) -> 12 | G26: Broadway Liquors | H26: 70055 | I26: PO Box 391 | J26: 403 Broadway | K26: Eagle
A27: 2058 | B27: Torrigiani Chianti 12/750ml | C27: =VLOOKUP(A27,'[1]October 2011'!$A:$T,20,FALSE) -> 125.88 | D27: =VLOOKUP(A27,'[1]Mountain Pricing'!$A:$T,20,FALSE) -> 144.6 | E27: =VLOOKUP(A27,'[1]October 2011'!$A:$C,3,FALSE) -> 12 | G27: C&H Spirit Solutions | H27: 70074 | I27: 1 Willow Bridge Rd | K27: Vail
A28: 3008 | B28: Guidaccio 6/750ml | C28: =VLOOKUP(A28,'[1]October 2011'!$A:$T,20,FALSE) -> 159.6 | D28: =VLOOKUP(A28,'[1]Mountain Pricing'!$A:$T,20,FALSE) -> 168.84 | E28: =VLOOKUP(A28,'[1]October 2011'!$A:$C,3,FALSE) -> 6 | G28: Carelli's Pizzeria | H28: 70130 | I28: 465 Yampa Ave. | K28: Craig
A29: 3081 | B29: Magnifico Lavender Honey 12/750 ml | C29: 243.6 | D29: 243.6 | E29: =VLOOKUP(A29,'[1]October 2011'!$A:$C,3,FALSE) -> 12 | G29: Carl's Pharmacy | H29: 70133 | I29: 306 E. Main | K29: Aspen
A30: 3082 | B30: Magnifico Ginger Peche 12/750 ml | C30: 243.6 | D30: 243.6 | E30: =VLOOKUP(A30,'[1]October 2011'!$A:$C,3,FALSE) -> 12 | G30: Carl's Tavern | H30: 70163 | I30: 700 Yampa St. #103 | K30: Steamboat Springs
A31: 3083 | B31: Magnifico Grapefruit Blanc 12/750ml | C31: 243.6 | D31: 243.6 | E31: =VLOOKUP(A31,'[1]October 2011'!$A:$C,3,FALSE) -> 12 | G31: Cellar Liquors | H31: 70007 | I31: PO Box 771745 | J31: 730 Lincoln Ave. | K31: Steamboat Springs
A32: 3091 | B32: Magnifico Lavender Honey 12/375 ml | C32: 159.6 | D32: 159.6 | E32: =VLOOKUP(A32,'[1]October 2011'!$A:$C,3,FALSE) -> 12 | G32: Center Town Liquors | H32: 70008 | I32: 136 S Mesa | K32: Fruita
A33: 3092 | B33: Magnifico Ginger Peche 12/375 ml | C33: 159.6 | D33: 159.6 | E33: =VLOOKUP(A33,'[1]October 2011'!$A:$C,3,FALSE) -> 12 | G33: Central Park Liquors | H33: 70009 | I33: PO Box 880609 | J33: 1835 Central Park Place | K33: Steamboat Springs
A34: 3093 | B34: Magnifico Grapefruit Blanc 12/375ml | C34: 159.6 | D34: 159.6 | E34: =VLOOKUP(A34,'[1]October 2011'!$A:$C,3,FALSE) -> 12 | G34: Cheeky Monk | H34: 70106 | I34: 130 Parry Peak Way | K34: Winter Park
A35: 4001 | B35: Duemani 6/750ml | C35: =VLOOKUP(A35,'[1]October 2011'!$A:$T,20,FALSE) -> 251.94 | D35: =VLOOKUP(A35,'[1]Mountain Pricing'!$A:$T,20,FALSE) -> 302.28 | E35: =VLOOKUP(A35,'[1]October 2011'!$A:$C,3,FALSE) -> 6 | G35: Choice Liquor | H35: 70059 | I35: 680 Wapiti Ct. | K35: Rifle
A36: 4002 | B36: Suisassi 6/750ml | C36: =VLOOKUP(A36,'[1]October 2011'!$A:$T,20,FALSE) -> 335.94 | D36: =VLOOKUP(A36,'[1]Mountain Pricing'!$A:$T,20,FALSE) -> 503.94 | E36: =VLOOKUP(A36,'[1]October 2011'!$A:$C,3,FALSE) -> 6 | G36: Circle R Bar | H36: 70218 | I36: 202 S Sharp St. | K36: Oak Creek
A37: 4003 | B37: Altrovino 12/750ml | C37: =VLOOKUP(A37,'[1]October 2011'!$A:$T,20,FALSE) -> 285.53 | D37: =VLOOKUP(A37,'[1]Mountain Pricing'!$A:$T,20,FALSE) -> 302.28 | E37: =VLOOKUP(A37,'[1]October 2011'!$A:$C,3,FALSE) -> 12 | G37: Citrolas Italian Grill & Bar | H37: 70175 | I37: 624 Rae Lynn St | K37: Grand Junction
A38: 4025 | B38: Tenuta S.Anna Prosecco 12/750ml | C38: =VLOOKUP(A38,'[1]October 2011'!$A:$T,20,FALSE) -> 142.68 | D38: =VLOOKUP(A38,'[1]Mountain Pricing'!$A:$T,20,FALSE) -> 144.68 | E38: =VLOOKUP(A38,'[1]October 2011'!$A:$C,3,FALSE) -> 12 | G38: City Liquors | H38: 70144 | I38: 400 N. Park | K38: Breckenridge
A39: 4051 | B39: Moshin Merlot 12/750ml | C39: =VLOOKUP(A39,'[1]October 2011'!$A:$T,20,FALSE) -> 268.68 | D39: =VLOOKUP(A39,'[1]Mountain Pricing'!$A:$T,20,FALSE) -> 268.68 | E39: =VLOOKUP(A39,'[1]October 2011'!$A:$C,3,FALSE) -> 12 | G39: Clifton Liquors | H39: 70010 | I39: PO Box 98 | J39: 3255 F Road | K39: Clifton
A40: 4052 | B40: Moshin Zinfandel 12/750ml | C40: =VLOOKUP(A40,'[1]October 2011'!$A:$T,20,FALSE) -> 293.88 | D40: =VLOOKUP(A40,'[1]Mountain Pricing'!$A:$T,20,FALSE) -> 293.88 | E40: =VLOOKUP(A40,'[1]October 2011'!$A:$C,3,FALSE) -> 12 | G40: College Liquors | H40: 70078 | I40: 1133 Patterson #9 | K40: Grand Junction
A41: 4053 | B41: Moshin Petite Sirah 12/750ml | C41: =VLOOKUP(A41,'[1]October 2011'!$A:$T,20,FALSE) -> 344.28 | D41: =VLOOKUP(A41,'[1]Mountain Pricing'!$A:$T,20,FALSE) -> 344.28 | E41: =VLOOKUP(A41,'[1]October 2011'!$A:$C,3,FALSE) -> 12 | G41: Cooper Wine & Spirits | H41: 70201 | I41: 732 Cooper Ave. | K41: Glenwood Springs
A42: 4055 | B42: Moshin P Noir Molinary 12/750m | C42: =VLOOKUP(A42,'[1]October 2011'!$A:$T,20,FALSE) -> 260.28 | D42: =VLOOKUP(A42,'[1]Mountain Pricing'!$A:$T,20,FALSE) -> 260.28 | E42: =VLOOKUP(A42,'[1]October 2011'!$A:$C,3,FALSE) -> 12 | G42: Cork's Fine Wines | H42: 70011 | I42: 16420 S. Townsend | K42: Montrose
A43: 4056 | B43: Moshin P Noir Russian Estate 12/750ml | C43: =VLOOKUP(A43,'[1]October 2011'!$A:$T,20,FALSE) -> 335.88 | D43: =VLOOKUP(A43,'[1]Mountain Pricing'!$A:$T,20,FALSE) -> 335.88 | E43: =VLOOKUP(A43,'[1]October 2011'!$A:$C,3,FALSE) -> 12 | G43: Coronado Liquors | H43: 70012 | I43: 569 32 Rd #3 | K43: Grand Junction
A44: 4057 | B44: Moshin P Noir Sonoma 12/750ml | C44: =VLOOKUP(A44,'[1]October 2011'!$A:$T,20,FALSE) -> 377.88 | D44: =VLOOKUP(A44,'[1]Mountain Pricing'!$A:$T,20,FALSE) -> 377.88 | E44: =VLOOKUP(A44,'[1]October 2011'!$A:$C,3,FALSE) -> 12 | G44: Cottonwood Liquors | H44: 70013 | I44: 2513 Hwy 6 & 50 | K44: Grand Junction
A45: 4058 | B45: Moshin Sauv Blanc 12/750ml | C45: =VLOOKUP(A45,'[1]October 2011'!$A:$T,20,FALSE) -> 218.28 | D45: =VLOOKUP(A45,'[1]Mountain Pricing'!$A:$T,20,FALSE) -> 218.28 | E45: =VLOOKUP(A45,'[1]October 2011'!$A:$C,3,FALSE) -> 12 | G45: Country Club liquors | H45: 70056 | I45: 683 Horizon Dr suite 105 | K45: Grand Junction
A46: 4059 | B46: Moshin Chardonnay 12/750ml | C46: =VLOOKUP(A46,'[1]October 2011'!$A:$T,20,FALSE) -> 285.48 | D46: =VLOOKUP(A46,'[1]Mountain Pricing'!$A:$T,20,FALSE) -> 285.48 | E46: =VLOOKUP(A46,'[1]October 2011'!$A:$C,3,FALSE) -> 12 | G46: Coyote Café | H46: 70102 | I46: 210 The Plaza | K46: Beaver Creek
A47: 4060 | B47: Moshin Potion 12/375ml | C47: =VLOOKUP(A47,'[1]October 2011'!$A:$T,20,FALSE) -> 335.88 | D47: =VLOOKUP(A47,'[1]Mountain Pricing'!$A:$T,20,FALSE) -> 335.88 | E47: =VLOOKUP(A47,'[1]October 2011'!$A:$C,3,FALSE) -> 12 | G47: Crossroads Wine & Spirit | H47: 70071 | I47: 611 24 Road | K47: Grand Junction
A48: 4061 | B48: Moshin Napa Cab 12/750ml | C48: =VLOOKUP(A48,'[1]October 2011'!$A:$T,20,FALSE) -> 344.28 | D48: =VLOOKUP(A48,'[1]Mountain Pricing'!$A:$T,20,FALSE) -> 344.28 | E48: =VLOOKUP(A48,'[1]October 2011'!$A:$C,3,FALSE) -> 12 | G48: Davetos Italian Restaurant | H48: 70076 | I48: 520 Main St. | K48: Delta
A49: 4062 | B49: Moshin Pinot Gris 12/750ml | C49: =VLOOKUP(A49,'[1]October 2011'!$A:$T,20,FALSE) -> 226.68 | D49: =VLOOKUP(A49,'[1]Mountain Pricing'!$A:$T,20,FALSE) -> 226.68 | E49: =VLOOKUP(A49,'[1]October 2011'!$A:$C,3,FALSE) -> 12 | G49: Devil's Thumb Ranch | H49: 70234 | I49: 3530 County rd 83 | K49: Tabernash
A50: 4063 | B50: Moshin Est. Rr Pinot Noir 12/375ml | C50: =VLOOKUP(A50,'[1]October 2011'!$A:$T,20,FALSE) -> 209.88 | D50: =VLOOKUP(A50,'[1]Mountain Pricing'!$A:$T,20,FALSE) -> 209.88 | E50: =VLOOKUP(A50,'[1]October 2011'!$A:$C,3,FALSE) -> 12 | G50: Dillon Ridge Liquors | H50: 70015 | I50: PO Box 4551 | J50: 294 US HWY 6 Unit B | K50: Dillon
A51: 4064 | B51: Moshin RR Pinot (On Prem) 12/750 | C51: =VLOOKUP(A51,'[1]October 2011'!$A:$T,20,FALSE) -> 200.04 | D51: =VLOOKUP(A51,'[1]Mountain Pricing'!$A:$T,20,FALSE) -> 200.04 | E51: =VLOOKUP(A51,'[1]October 2011'!$A:$C,3,FALSE) -> 12 | G51: Dolce Vita | H51: 70016 | I51: 336 Main St #101-104 | K51: Grand Junction
A52: 4065 | B52: Moshin Vin Gris of P.N. 12/750 | C52: =VLOOKUP(A52,'[1]October 2011'!$A:$T,20,FALSE) -> 167.88 | D52: =VLOOKUP(A52,'[1]Mountain Pricing'!$A:$T,20,FALSE) -> 167.88 | E52: =VLOOKUP(A52,'[1]October 2011'!$A:$C,3,FALSE) -> 12 | G52: Double Diamonds Bar | H52: 70203 | I52: 2300 Mt. Werner Cr. | K52: Steamboat Springs
A53: 4090 | B53: Fritz Charsonnay 12/750 ml | C53: =VLOOKUP(A53,'[1]October 2011'!$A:$T,20,FALSE) -> 226.68 | D53: =VLOOKUP(A53,'[1]Mountain Pricing'!$A:$T,20,FALSE) -> 226.68 | E53: =VLOOKUP(A53,'[1]October 2011'!$A:$C,3,FALSE) -> 12 | G53: Eagle liiquor Mart | H53: 70251 | I53: 65 Market Dr | K53: Eagle
A54: 4091 | B54: Fritz Zinfandel 12/750 ml | C54: =VLOOKUP(A54,'[1]October 2011'!$A:$T,20,FALSE) -> 218.28 | D54: =VLOOKUP(A54,'[1]Mountain Pricing'!$A:$T,20,FALSE) -> 218.28 | E54: =VLOOKUP(A54,'[1]October 2011'!$A:$C,3,FALSE) -> 12 | G54: Eagle Ranch Wine & Spirits | H54: 70017 | I54: PO Box 5290 | J54: 1143 Capital St. | K54: Eagle
A55: 4092 | B55: Fritz Pinot Noir 12/750 ml | C55: =VLOOKUP(A55,'[1]October 2011'!$A:$T,20,FALSE) -> 285.48 | D55: =VLOOKUP(A55,'[1]Mountain Pricing'!$A:$T,20,FALSE) -> 285.48 | E55: =VLOOKUP(A55,'[1]October 2011'!$A:$C,3,FALSE) -> 12 | G55: East Valley Liquors | H55: 70018 | I55: 422 32nd Rd | K55: Clifton
A56: 4095 | B56: Lost Canyon Pinot Noir 12/750 ml | C56: =VLOOKUP(A56,'[1]October 2011'!$A:$T,20,FALSE) -> 419.88 | D56: =VLOOKUP(A56,'[1]Mountain Pricing'!$A:$T,20,FALSE) -> 419.88 | E56: =VLOOKUP(A56,'[1]October 2011'!$A:$C,3,FALSE) -> 12 | G56: Eastside Liquor | H56: 70128 | I56: 539 E Victory Wy | K56: Craig
A57: 5000 | B57: La Chertosa Winemaker 12/750 | C57: =VLOOKUP(A57,'[1]October 2011'!$A:$T,20,FALSE) -> 587.88 | D57: =VLOOKUP(A57,'[1]Mountain Pricing'!$A:$T,20,FALSE) -> 587.88 | E57: =VLOOKUP(A57,'[1]October 2011'!$A:$C,3,FALSE) -> 12 | G57: El Horizonte | H57: 70150 | I57: 0908 Hwy 133 | K57: Carbondale
A58: 5001 | B58: Conserva Napa Cab 12/750ml | C58: =VLOOKUP(A58,'[1]October 2011'!$A:$T,20,FALSE) -> 503.88 | D58: =VLOOKUP(A58,'[1]Mountain Pricing'!$A:$T,20,FALSE) -> 503.88 | E58: =VLOOKUP(A58,'[1]October 2011'!$A:$C,3,FALSE) -> 12 | G58: El Jebeverage | H58: 70019 | I58: 300 E Valley Rd. | K58: Carbondale
A59: 5002 | B59: La Chertosa Chardonnay12/750ml | C59: =VLOOKUP(A59,'[1]October 2011'!$A:$T,20,FALSE) -> 209.88 | D59: =VLOOKUP(A59,'[1]Mountain Pricing'!$A:$T,20,FALSE) -> 209.88 | E59: =VLOOKUP(A59,'[1]October 2011'!$A:$C,3,FALSE) -> 12 | G59: Elk Camp Restaurant | H59: 70140 | I59: 001.9 E Snowmass Summer Rd. | K59: Snowmass Village
A60: 5003 | B60: La Chertosa Sangiovese 12/750 | C60: =VLOOKUP(A60,'[1]October 2011'!$A:$T,20,FALSE) -> 302.28 | D60: =VLOOKUP(A60,'[1]Mountain Pricing'!$A:$T,20,FALSE) -> 302.28 | E60: =VLOOKUP(A60,'[1]October 2011'!$A:$C,3,FALSE) -> 12 | G60: Elmer Suds Liquor | H60: 70167 | I60: 820 Castle Valley Blvd | K60: New Castle
A61: 5004 | B61: La Chertosa Zinfandel 12/750ml | C61: =VLOOKUP(A61,'[1]October 2011'!$A:$T,20,FALSE) -> 302.28 | D61: =VLOOKUP(A61,'[1]Mountain Pricing'!$A:$T,20,FALSE) -> 302.28 | E61: =VLOOKUP(A61,'[1]October 2011'!$A:$C,3,FALSE) -> 12 | G61: Elway's | H61: 70096 | I61: 174 E. Gore Creek Dr | K61: Vail
A62: 5009 | B62: The Winemaker Napa Cab 6/1.5L | C62: =VLOOKUP(A62,'[1]October 2011'!$A:$T,20,FALSE) -> 587.88 | D62: =VLOOKUP(A62,'[1]Mountain Pricing'!$A:$T,20,FALSE) -> 587.88 | E62: =VLOOKUP(A62,'[1]October 2011'!$A:$C,3,FALSE) -> 6 | G62: Ember | H62: 70125 | I62: 106 adams ave | K62: Breckenridge
A63: 5040 | B63: Geo. Rafael Cab 12/750 | C63: =VLOOKUP(A63,'[1]October 2011'!$A:$T,20,FALSE) -> 377.88 | D63: =VLOOKUP(A63,'[1]Mountain Pricing'!$A:$T,20,FALSE) -> 377.88 | E63: =VLOOKUP(A63,'[1]October 2011'!$A:$C,3,FALSE) -> 12 | G63: Enterprize Liquor | H63: 70066 | I63: 2923 North Ave. | K63: Grand Junction
A64: 5041 | B64: Geo. Rafael Chard 12/750 | C64: =VLOOKUP(A64,'[1]October 2011'!$A:$T,20,FALSE) -> 251.88 | D64: =VLOOKUP(A64,'[1]Mountain Pricing'!$A:$T,20,FALSE) -> 251.88 | E64: =VLOOKUP(A64,'[1]October 2011'!$A:$C,3,FALSE) -> 12 | G64: Enzo's | H64: 70067 | I64: 759 Horizon Dr | K64: Grand Junction
A65: 5051 | B65: Buon OPC 12/750ml | C65: =VLOOKUP(A65,'[1]October 2011'!$A:$T,20,FALSE) -> 335.88 | D65: =VLOOKUP(A65,'[1]Mountain Pricing'!$A:$T,20,FALSE) -> 337.56 | E65: =VLOOKUP(A65,'[1]October 2011'!$A:$C,3,FALSE) -> 12 | G65: Enzo's Pizza Shack | H65: 70162 | I65: 3235 I-70 Business Loop | K65: Clifton
A66: 5052 | B66: Buon Rosato 12/750ml | C66: =VLOOKUP(A66,'[1]October 2011'!$A:$T,20,FALSE) -> 209.88 | D66: =VLOOKUP(A66,'[1]Mountain Pricing'!$A:$T,20,FALSE) -> 216.96 | E66: =VLOOKUP(A66,'[1]October 2011'!$A:$C,3,FALSE) -> 12 | G66: Eureka Mediterranean Street Food | H66: 70226 | I66: 700 Yampa St. #101 | K66: Steamboat Springs
A67: 5053 | B67: Buon Sauv Bl 12/750ml | C67: =VLOOKUP(A67,'[1]October 2011'!$A:$T,20,FALSE) -> 327.48 | D67: =VLOOKUP(A67,'[1]Mountain Pricing'!$A:$T,20,FALSE) -> 329.52 | E67: =VLOOKUP(A67,'[1]October 2011'!$A:$C,3,FALSE) -> 12 | G67: Fariground Wine & Liquor | H67: 70060 | I67: 2771 B1/2 Rd. | K67: Grand Junction
A68: 5054 | B68: Buon Chard 12/750ml | C68: =VLOOKUP(A68,'[1]October 2011'!$A:$T,20,FALSE) -> 461.88 | D68: =VLOOKUP(A68,'[1]Mountain Pricing'!$A:$T,20,FALSE) -> 466.2 | E68: =VLOOKUP(A68,'[1]October 2011'!$A:$C,3,FALSE) -> 12 | G68: Finbarr's | H68: 70227 | I68: 415 E. Hyman Ave unit 16 | K68: Aspen
A69: 5055 | B69: Buon Dolcetto 12/750ml | C69: =VLOOKUP(A69,'[1]October 2011'!$A:$T,20,FALSE) -> 411.48 | D69: =VLOOKUP(A69,'[1]Mountain Pricing'!$A:$T,20,FALSE) -> 409.92 | E69: =VLOOKUP(A69,'[1]October 2011'!$A:$C,3,FALSE) -> 12 | G69: Finbarr's Irish Pub and Kitchen | H69: 70225 | I69: 303 River Valley Ranch Dr. | K69: Carbondale
A70: 5056 | B70: Buon Syrah 12/750ml | C70: =VLOOKUP(A70,'[1]October 2011'!$A:$T,20,FALSE) -> 613.08 | D70: =VLOOKUP(A70,'[1]Mountain Pricing'!$A:$T,20,FALSE) -> 618.96 | E70: =VLOOKUP(A70,'[1]October 2011'!$A:$C,3,FALSE) -> 12 | G70: Fisher's Liquor Barn | H70: 70020 | I70: 2438 F Rd. | K70: Grand Junction
A71: 5057 | B71: Buon Malbec 12/750ml | C71: =VLOOKUP(A71,'[1]October 2011'!$A:$T,20,FALSE) -> 613.08 | D71: =VLOOKUP(A71,'[1]Mountain Pricing'!$A:$T,20,FALSE) -> 618.96 | E71: =VLOOKUP(A71,'[1]October 2011'!$A:$C,3,FALSE) -> 12 | G71: Flights & Pints Tasting Room | H71: 70193 | I71: 150 Cooley Mesa Rd | K71: Gypsum
A72: 5058 | B72: Buon Cab CL 12/750ml | C72: =VLOOKUP(A72,'[1]October 2011'!$A:$T,20,FALSE) -> 907.08 | D72: =VLOOKUP(A72,'[1]Mountain Pricing'!$A:$T,20,FALSE) -> 908.4 | E72: =VLOOKUP(A72,'[1]October 2011'!$A:$C,3,FALSE) -> 12 | G72: Fly-N-Roosters | H72: 70021 | I72: 200 W Grand | K72: Grand Junction
A73: 5059 | B73: Buon Triad Blanc 12/750ml | C73: =VLOOKUP(A73,'[1]October 2011'!$A:$T,20,FALSE) -> 209.88 | D73: =VLOOKUP(A73,'[1]Mountain Pricing'!$A:$T,20,FALSE) -> 257.16 | E73: =VLOOKUP(A73,'[1]October 2011'!$A:$C,3,FALSE) -> 12 | G73: Four Dogs Wine & Spirits | H73: 70147 | I73: 350 Reed St. | K73: Basalt
A74: 5070 | B74: Blue Mountain Cherry Cider 1/6 BBL | C74: =VLOOKUP(A74,'[1]October 2011'!$A:$T,20,FALSE) -> 117 | D74: =VLOOKUP(A74,'[1]Mountain Pricing'!$A:$T,20,FALSE) -> 117 | E74: =VLOOKUP(A74,'[1]October 2011'!$A:$C,3,FALSE) -> 1 | G74: Four Seasons Vail | H74: 70212 | I74: One Vail Road | K74: Vail
A75: 5071 | B75: Blue Mountain Eden R Cider 1/6 BBL | C75: =VLOOKUP(A75,'[1]October 2011'!$A:$T,20,FALSE) -> 83 | D75: =VLOOKUP(A75,'[1]Mountain Pricing'!$A:$T,20,FALSE) -> 83 | E75: =VLOOKUP(A75,'[1]October 2011'!$A:$C,3,FALSE) -> 1 | G75: Frisco Liquors | H75: 70063 | I75: PO Box 100 | J75: 416 Main St. Unit 5 | K75: Frisco
A76: 5072 | B76: Blue Mountain Dry Creek Cider 1/6 BBL | C76: =VLOOKUP(A76,'[1]October 2011'!$A:$T,20,FALSE) -> 83 | D76: =VLOOKUP(A76,'[1]Mountain Pricing'!$A:$T,20,FALSE) -> 83 | E76: =VLOOKUP(A76,'[1]October 2011'!$A:$C,3,FALSE) -> 1 | G76: Frisco Wine Merchant | H76: 70094 | I76: 401 Main st Unit D | K76: Frisco
A77: 5076 | B77: Blue Mountain Cranberry Cider 12/22 nr | C77: =VLOOKUP(A77,'[1]October 2011'!$A:$T,20,FALSE) -> 75.48 | D77: =VLOOKUP(A77,'[1]Mountain Pricing'!$A:$T,20,FALSE) -> 75.48 | E77: =VLOOKUP(A77,'[1]October 2011'!$A:$C,3,FALSE) -> 12 | G77: Fruita Liquor Mart | H77: 70061 | I77: 423 E. Hwy 6 & 50 | K77: Fruita
A78: 5077 | B78: Blue Mountain Dry Creek Cider 12/22 nr | C78: =VLOOKUP(A78,'[1]October 2011'!$A:$T,20,FALSE) -> 75.48 | D78: =VLOOKUP(A78,'[1]Mountain Pricing'!$A:$T,20,FALSE) -> 75.48 | E78: =VLOOKUP(A78,'[1]October 2011'!$A:$C,3,FALSE) -> 12 | G78: Fun Junction Liquors | H78: 70152 | I78: 510 28 3/4 rd | K78: Grand Junction
A79: 5078 | B79: Blue Mountain Eden R Cider 12/22 nr | C79: =VLOOKUP(A79,'[1]October 2011'!$A:$T,20,FALSE) -> 75.48 | D79: =VLOOKUP(A79,'[1]Mountain Pricing'!$A:$T,20,FALSE) -> 75.48 | E79: =VLOOKUP(A79,'[1]October 2011'!$A:$C,3,FALSE) -> 12 | G79: Geno's | H79: 70062 | I79: 23 Mel-Rey Rd | K79: Glenwood Springs
A80: 5079 | B80: Blue Mountain Cherry Cider 12/22 nr | C80: =VLOOKUP(A80,'[1]October 2011'!$A:$T,20,FALSE) -> 75.48 | D80: =VLOOKUP(A80,'[1]Mountain Pricing'!$A:$T,20,FALSE) -> 75.48 | E80: =VLOOKUP(A80,'[1]October 2011'!$A:$C,3,FALSE) -> 12 | G80: Glenwood Canyon Brew Pub | H80: 70023 | I80: PO Box 2214 | J80: 402 7th St. | K80: Glenwood Springs
A81: 5080 | B81: Chances R Red 12/750 ml | C81: =VLOOKUP(A81,'[1]October 2011'!$A:$T,20,FALSE) -> 151.08 | D81: =VLOOKUP(A81,'[1]Mountain Pricing'!$A:$T,20,FALSE) -> 151.08 | E81: =VLOOKUP(A81,'[1]October 2011'!$A:$C,3,FALSE) -> 12 | G81: Grand Avenue Liquors | H81: 70024 | I81: 1512 Grand Ave. | K81: Glenwood Springs
A82: 5081 | B82: Watermill Tempranillo 12/750 ml | C82: =VLOOKUP(A82,'[1]October 2011'!$A:$T,20,FALSE) -> 285.48 | D82: =VLOOKUP(A82,'[1]Mountain Pricing'!$A:$T,20,FALSE) -> 285.48 | E82: =VLOOKUP(A82,'[1]October 2011'!$A:$C,3,FALSE) -> 12 | G82: Grappa | H82: 70025 | I82: 100 E. Meadow Dr. | K82: Vail
A83: 5082 | B83: Watermill Cab Franc 12/750ml | C83: =VLOOKUP(A83,'[1]October 2011'!$A:$T,20,FALSE) -> 285.48 | D83: =VLOOKUP(A83,'[1]Mountain Pricing'!$A:$T,20,FALSE) -> 285.48 | E83: =VLOOKUP(A83,'[1]October 2011'!$A:$C,3,FALSE) -> 12 | G83: Great Western Grog Shop | H83: 70026 | I83: 710 E. Durant Ave. | K83: Aspen
A84: 5083 | B84: Watermill Malbec 12/750 ml | C84: =VLOOKUP(A84,'[1]October 2011'!$A:$T,20,FALSE) -> 310.68 | D84: =VLOOKUP(A84,'[1]Mountain Pricing'!$A:$T,20,FALSE) -> 310.68 | E84: =VLOOKUP(A84,'[1]October 2011'!$A:$C,3,FALSE) -> 12 | G84: Greco's | H84: 70224 | I84: 311 Main St. | K84: Frisco
A85: 5084 | B85: Watermill Cab Sauv 12/750 ml | C85: =VLOOKUP(A85,'[1]October 2011'!$A:$T,20,FALSE) -> 235.2 | D85: =VLOOKUP(A85,'[1]Mountain Pricing'!$A:$T,20,FALSE) -> 235.2 | E85: =VLOOKUP(A85,'[1]October 2011'!$A:$C,3,FALSE) -> 12 | G85: Grouse Montain Grill | H85: 70089 | I85: 141 Scott Hill Rd | K85: Edwards
A86: 5086 | B86: Watermill Merlot 12/750 ml | C86: =VLOOKUP(A86,'[1]October 2011'!$A:$T,20,FALSE) -> 235.2 | D86: =VLOOKUP(A86,'[1]Mountain Pricing'!$A:$T,20,FALSE) -> 235.2 | E86: =VLOOKUP(A86,'[1]October 2011'!$A:$C,3,FALSE) -> 12 | G86: Gypsum Liquors | H86: 70139 | I86: 800 Hwy 6 | K86: Gypsum
A87: 5087 | B87: Watermill Viognier 12/750ml | C87: =VLOOKUP(A87,'[1]October 2011'!$A:$T,20,FALSE) -> 159.48 | D87: =VLOOKUP(A87,'[1]Mountain Pricing'!$A:$T,20,FALSE) -> 159.48 | E87: =VLOOKUP(A87,'[1]October 2011'!$A:$C,3,FALSE) -> 12 | G87: Hooked | H87: 70199 | I87: 122 the plaza unit23b | K87: avon
A88: 5088 | B88: Watermill LH Gewur 12/375ml | C88: =VLOOKUP(A88,'[1]October 2011'!$A:$T,20,FALSE) -> 159.48 | D88: =VLOOKUP(A88,'[1]Mountain Pricing'!$A:$T,20,FALSE) -> 159.48 | E88: =VLOOKUP(A88,'[1]October 2011'!$A:$C,3,FALSE) -> 12 | G88: Hooters (Grand Jct.) | H88: 70235 | I88: 2880 north ave | K88: Grand Junction
A89: 6000 | B89: El Llano Red 12/750ml | C89: =VLOOKUP(A89,'[1]October 2011'!$A:$T,20,FALSE) -> 411.48 | D89: =VLOOKUP(A89,'[1]Mountain Pricing'!$A:$T,20,FALSE) -> 411.48 | E89: =VLOOKUP(A89,'[1]October 2011'!$A:$C,3,FALSE) -> 12 | G89: Hops Culture | H89: 70221 | I89: 414 E. Hyman Ave | K89: Aspen
A90: 6001 | B90: Mi Sueno Chard Los Carneros 12/750 ml | C90: =VLOOKUP(A90,'[1]October 2011'!$A:$T,20,FALSE) -> 386.28 | D90: =VLOOKUP(A90,'[1]Mountain Pricing'!$A:$T,20,FALSE) -> 386.28 | E90: =VLOOKUP(A90,'[1]October 2011'!$A:$C,3,FALSE) -> 12 | G90: Horizon Liquors | H90: 70080 | I90: 715 Horizon Dr. | K90: Grand Junction
A91: 6002 | B91: Mi Sueno Cabernet 12/750ml | C91: =VLOOKUP(A91,'[1]October 2011'!$A:$T,20,FALSE) -> 663.48 | D91: =VLOOKUP(A91,'[1]Mountain Pricing'!$A:$T,20,FALSE) -> 663.48 | E91: =VLOOKUP(A91,'[1]October 2011'!$A:$C,3,FALSE) -> 12 | G91: Hotel Jerome | H91: 70228 | I91: 330 E. Main St. | K91: Aspen
A92: 6003 | B92: Mi Sueno P Noir Russian 12/750ml | C92: =VLOOKUP(A92,'[1]October 2011'!$A:$T,20,FALSE) -> 487.08 | D92: =VLOOKUP(A92,'[1]Mountain Pricing'!$A:$T,20,FALSE) -> 487.08 | E92: =VLOOKUP(A92,'[1]October 2011'!$A:$C,3,FALSE) -> 12 | G92: In the Middle Liquors | H92: 70079 | I92: 303 US HWY 6 & 50 | K92: Fruita
A93: 6005 | B93: Mi Sueno P Noir Carneros 12/750ml | C93: =VLOOKUP(A93,'[1]October 2011'!$A:$T,20,FALSE) -> 386.28 | D93: =VLOOKUP(A93,'[1]Mountain Pricing'!$A:$T,20,FALSE) -> 386.28 | E93: =VLOOKUP(A93,'[1]October 2011'!$A:$C,3,FALSE) -> 12 | G93: Italian Underground | H93: 70118 | I93: 715 Grand Ave | K93: Glenwood Springs
A94: 6020 | B94: COHO Headwaters 6/750 ml | C94: =VLOOKUP(A94,'[1]October 2011'!$A:$T,20,FALSE) -> 226.74 | D94: =VLOOKUP(A94,'[1]Mountain Pricing'!$A:$T,20,FALSE) -> 226.74 | E94: =VLOOKUP(A94,'[1]October 2011'!$A:$C,3,FALSE) -> 6 | G94: Jackalope Liquors | H94: 70143 | I94: 404 Jurassic Ave | K94: Fruita
A95: 6021 | B95: COHO P Noir Stanley 6/750 ml | C95: =VLOOKUP(A95,'[1]October 2011'!$A:$T,20,FALSE) -> 230.94 | D95: =VLOOKUP(A95,'[1]Mountain Pricing'!$A:$T,20,FALSE) -> 230.94 | E95: =VLOOKUP(A95,'[1]October 2011'!$A:$C,3,FALSE) -> 6 | G95: Jake's Liquor | H95: 70027 | I95: 170 Cooley Mesa Rd. Ste B | K95: Gypsum
A96: 6023 | B96: COHO Canernet Summit 6/750 ml | C96: =VLOOKUP(A96,'[1]October 2011'!$A:$T,20,FALSE) -> 298.14 | D96: =VLOOKUP(A96,'[1]Mountain Pricing'!$A:$T,20,FALSE) -> 298.14 | E96: =VLOOKUP(A96,'[1]October 2011'!$A:$C,3,FALSE) -> 6 | G96: Jimbo's Liquors | H96: 70123 | I96: 128 Basalt center cir | K96: Basalt
A97: 6024 | B97: COHO Michel Merlot 12/750ml | C97: =VLOOKUP(A97,'[1]October 2011'!$A:$T,20,FALSE) -> 281.34 | D97: =VLOOKUP(A97,'[1]Mountain Pricing'!$A:$T,20,FALSE) -> 281.34 | E97: =VLOOKUP(A97,'[1]October 2011'!$A:$C,3,FALSE) -> 6 | G97: Jimmy's Resaturant | H97: 70028 | I97: 205 S. Mill St. | K97: Aspen
A98: 6048 | B98: Saviah Cabernet Sauv 12/750ml | C98: =VLOOKUP(A98,'[1]October 2011'!$A:$T,20,FALSE) -> 251.88 | D98: =VLOOKUP(A98,'[1]Mountain Pricing'!$A:$T,20,FALSE) -> 251.88 | E98: =VLOOKUP(A98,'[1]October 2011'!$A:$C,3,FALSE) -> 12 | G98: Joe's Liquors | H98: 70165 | I98: 1060 W. Beaver Creek Blvd | K98: Avon
A99: 6049 | B99: Saviah Syrah 12/750ml | C99: =VLOOKUP(A99,'[1]October 2011'!$A:$T,20,FALSE) -> 302.28 | D99: =VLOOKUP(A99,'[1]Mountain Pricing'!$A:$T,20,FALSE) -> 302.28 | E99: =VLOOKUP(A99,'[1]October 2011'!$A:$C,3,FALSE) -> 12 | G99: Juniper | H99: 70092 | I99: 97 Main st Unit E101 | K99: Edwards
A100: 6051 | B100: The Jack Red 12/750ml | C100: =VLOOKUP(A100,'[1]October 2011'!$A:$T,20,FALSE) -> 142.68 | D100: =VLOOKUP(A100,'[1]Mountain Pricing'!$A:$T,20,FALSE) -> 144.6 | E100: =VLOOKUP(A100,'[1]October 2011'!$A:$C,3,FALSE) -> 12 | G100: Karma Bar and Lounge | H100: 70215 | I100: 373 Lincoln Ave #1 | K100: Steamboat Springs
A101: 6052 | B101: The Jack Syrah 12/750ml | C101: =VLOOKUP(A101,'[1]October 2011'!$A:$T,20,FALSE) -> 142.68 | D101: =VLOOKUP(A101,'[1]Mountain Pricing'!$A:$T,20,FALSE) -> 144.6 | E101: =VLOOKUP(A101,'[1]October 2011'!$A:$C,3,FALSE) -> 12 | G101: Kenosha Steakhouse | H101: 70161 | I101: 301 s main st | K101: Breckenridge
A102: 6053 | B102: The Jack Cabernet Sauvignon 12/750ml | C102: =VLOOKUP(A102,'[1]October 2011'!$A:$T,20,FALSE) -> 142.68 | D102: =VLOOKUP(A102,'[1]Mountain Pricing'!$A:$T,20,FALSE) -> 144.6 | E102: =VLOOKUP(A102,'[1]October 2011'!$A:$C,3,FALSE) -> 12 | G102: Kokopelli Liquor | H102: 70065 | I102: 2996 D road | K102: Grand Junction
A103: 6054 | B103: The Jack Riesling 12/750ml | C103: =VLOOKUP(A103,'[1]October 2011'!$A:$T,20,FALSE) -> 117.48 | D103: =VLOOKUP(A103,'[1]Mountain Pricing'!$A:$T,20,FALSE) -> 120.48 | E103: =VLOOKUP(A103,'[1]October 2011'!$A:$C,3,FALSE) -> 12 | G103: L Apogee | H103: 70210 | I103: 911 Lincoln Ave. | K103: Steamboat Springs
A104: 6058 | B104: Big Sky Cuvée, Columbia Valley 12/750ml | C104: =VLOOKUP(A104,'[1]October 2011'!$A:$T,20,FALSE) -> 310.68 | D104: =VLOOKUP(A104,'[1]Mountain Pricing'!$A:$T,20,FALSE) -> 313.44 | E104: =VLOOKUP(A104,'[1]October 2011'!$A:$C,3,FALSE) -> 12 | G104: La Tour Resturant | H104: 70110 | I104: 122 E. Meadow Dr. | K104: Vail
A105: 6071 | B105: Wolf 7 12/750ml | C105: =VLOOKUP(A105,'[1]October 2011'!$A:$T,20,FALSE) -> 94.2 | D105: =VLOOKUP(A105,'[1]Mountain Pricing'!$A:$T,20,FALSE) -> 94.2 | E105: =VLOOKUP(A105,'[1]October 2011'!$A:$C,3,FALSE) -> 12 | G105: Lake Dillon Discount Liquors | H105: 70185 | I105: 149 Tenderfoot | K105: Dillon
A106: 6073 | B106: Lupus 9 Wolf 12/750 ml | C106: =VLOOKUP(A106,'[1]October 2011'!$A:$T,20,FALSE) -> 94.2 | D106: =VLOOKUP(A106,'[1]Mountain Pricing'!$A:$T,20,FALSE) -> 94.2 | E106: =VLOOKUP(A106,'[1]October 2011'!$A:$C,3,FALSE) -> 12 | G106: Lakeside Bowl | H106: 70204 | I106: 135 Main st | K106: Dillon
A107: 6074 | B107: Ter Dolen Kreik 24/11.2 nr | C107: =VLOOKUP(A107,'[1]October 2011'!$A:$T,20,FALSE) -> 79.92 | D107: =VLOOKUP(A107,'[1]Mountain Pricing'!$A:$T,20,FALSE) -> 79.92 | E107: =VLOOKUP(A107,'[1]October 2011'!$A:$C,3,FALSE) -> 24 | G107: Larkspur Restaurant | H107: 70250 | I107: 458 Vail Valley Dr | K107: Vail
A108: 6075 | B108: Ter Dolen Kreik 20L | C108: =VLOOKUP(A108,'[1]October 2011'!$A:$T,20,FALSE) -> 175 | D108: =VLOOKUP(A108,'[1]Mountain Pricing'!$A:$T,20,FALSE) -> 175 | E108: =VLOOKUP(A108,'[1]October 2011'!$A:$C,3,FALSE) -> 1 | G108: Laundry, The | H108: 70109 | I108: 127 11th St. | K108: Steamboat Springs
A109: 6077 | B109: Verzet Oud Bruin 15/375ml | C109: =VLOOKUP(A109,'[1]October 2011'!$A:$T,20,FALSE) -> 94.2 | D109: =VLOOKUP(A109,'[1]Mountain Pricing'!$A:$T,20,FALSE) -> 94.2 | E109: =VLOOKUP(A109,'[1]October 2011'!$A:$C,3,FALSE) -> 12 | G109: Lionshead Liquor | H109: 70029 | I109: 641 W. Lionshead Cir. | K109: Vail
A110: 6078 | B110: Old Tom 12/11.2 nr | C110: =VLOOKUP(A110,'[1]October 2011'!$A:$T,20,FALSE) -> 47.04 | D110: =VLOOKUP(A110,'[1]Mountain Pricing'!$A:$T,20,FALSE) -> 47.04 | E110: =VLOOKUP(A110,'[1]October 2011'!$A:$C,3,FALSE) -> 12 | G110: Liquor Shed, The | H110: 70115 | I110: 116 North Main St. | K110: Breckenridge
A111: 6079 | B111: Old Tom Chocolate 12/11.2 nr | C111: =VLOOKUP(A111,'[1]October 2011'!$A:$T,20,FALSE) -> 47.04 | D111: =VLOOKUP(A111,'[1]Mountain Pricing'!$A:$T,20,FALSE) -> 47.04 | E111: =VLOOKUP(A111,'[1]October 2011'!$A:$C,3,FALSE) -> 12 | G111: Liquor Shop | H111: 70155 | I111: 600 Bertroch Ln | K111: Gypsum
A112: 6080 | B112: Old Tom Ginger 12/11.2 nr | C112: =VLOOKUP(A112,'[1]October 2011'!$A:$T,20,FALSE) -> 47.04 | D112: =VLOOKUP(A112,'[1]Mountain Pricing'!$A:$T,20,FALSE) -> 47.04 | E112: =VLOOKUP(A112,'[1]October 2011'!$A:$C,3,FALSE) -> 12 | G112: Liquor Store, The | H112: 70030 | I112: 1601 Oxbow Dr. | K112: Montrose
A113: 6081 | B113: Trooper 8/16.9 nr | C113: =VLOOKUP(A113,'[1]October 2011'!$A:$T,20,FALSE) -> 39.92 | D113: =VLOOKUP(A113,'[1]Mountain Pricing'!$A:$T,20,FALSE) -> 39.92 | E113: =VLOOKUP(A113,'[1]October 2011'!$A:$C,3,FALSE) -> 8 | G113: Little Nell | H113: 70191 | I113: 675 E Durant Ave | K113: Aspen
A114: 6082 | B114: Trooper 20L BBL | C114: =VLOOKUP(A114,'[1]October 2011'!$A:$T,20,FALSE) -> 130 | D114: =VLOOKUP(A114,'[1]Mountain Pricing'!$A:$T,20,FALSE) -> 130 | E114: =VLOOKUP(A114,'[1]October 2011'!$A:$C,3,FALSE) -> 1 | G114: Loadout Liquors | H114: 70136 | I114: 1800 W. Victory Way | K114: Craig
A115: 6084 | B115: Prearis Quadrupel 20L BBL | C115: =VLOOKUP(A115,'[1]October 2011'!$A:$T,20,FALSE) -> 163 | D115: =VLOOKUP(A115,'[1]Mountain Pricing'!$A:$T,20,FALSE) -> 163 | E115: =VLOOKUP(A115,'[1]October 2011'!$A:$C,3,FALSE) -> 1 | G115: Local Liquors | H115: 70141 | I115: 358 Blue Pkwy | K115: Silverthorne
A116: 6085 | B116: Prearis Quadrupel 6/750 ml | C116: =VLOOKUP(A116,'[1]October 2011'!$A:$T,20,FALSE) -> 55.62 | D116: =VLOOKUP(A116,'[1]Mountain Pricing'!$A:$T,20,FALSE) -> 55.62 | E116: =VLOOKUP(A116,'[1]October 2011'!$A:$C,3,FALSE) -> 6 | G116: Local Spirits | H116: 70031 | I116: 435 E. Main | K116: Aspen
A117: 6086 | B117: Prearis Quadarcinno 12/375 ml | C117: =VLOOKUP(A117,'[1]October 2011'!$A:$T,20,FALSE) -> 72 | D117: 72 | E117: =VLOOKUP(A117,'[1]October 2011'!$A:$C,3,FALSE) -> 12 | G117: Loveland Pass Liquors | H117: 70134 | I117: 101 Mountain View | K117: Keystone
A118: 6087 | B118: Prearis Saison 6/750 ml | C118: =VLOOKUP(A118,'[1]October 2011'!$A:$T,20,FALSE) -> 51.36 | D118: =VLOOKUP(A118,'[1]Mountain Pricing'!$A:$T,20,FALSE) -> 51.36 | E118: =VLOOKUP(A118,'[1]October 2011'!$A:$C,3,FALSE) -> 6 | G118: Low Country Kitchen | H118: 70219 | I118: 435 Lincoln Ave. | K118: Steamboat Springs
A119: 6088 | B119: Lupulus 12/750 ml | C119: =VLOOKUP(A119,'[1]October 2011'!$A:$T,20,FALSE) -> 94.2 | D119: =VLOOKUP(A119,'[1]Mountain Pricing'!$A:$T,20,FALSE) -> 94.2 | E119: =VLOOKUP(A119,'[1]October 2011'!$A:$C,3,FALSE) -> 12 | G119: Mac's Liquor | H119: 70032 | I119: PO Box 534 | J119: 106 Oak Ridge Dr. | K119: Gypsum
A120: 6089 | B120: Kortrijk-Dustel 6/750 ml | C120: =VLOOKUP(A120,'[1]October 2011'!$A:$T,20,FALSE) -> 79.32 | D120: =VLOOKUP(A120,'[1]Mountain Pricing'!$A:$T,20,FALSE) -> 79.32 | E120: =VLOOKUP(A120,'[1]October 2011'!$A:$C,3,FALSE) -> 6 | G120: Marc's Chicago Pizza | H120: 70120 | I120: 1031 F So. Frontage Rd. | K120: Vail
A121: 6090 | B121: Ter Dolen Armand 6/750 ml | C121: =VLOOKUP(A121,'[1]October 2011'!$A:$T,20,FALSE) -> 55.68 | D121: =VLOOKUP(A121,'[1]Mountain Pricing'!$A:$T,20,FALSE) -> 55.68 | E121: =VLOOKUP(A121,'[1]October 2011'!$A:$C,3,FALSE) -> 6 | G121: Market Wine & Spirits | H121: 70084 | I121: 210 Offerson Rd. | K121: Avon
A122: 6091 | B122: Triporteur Heaven 20L BBL | C122: =VLOOKUP(A122,'[1]October 2011'!$A:$T,20,FALSE) -> 156 | D122: =VLOOKUP(A122,'[1]Mountain Pricing'!$A:$T,20,FALSE) -> 156 | E122: =VLOOKUP(A122,'[1]October 2011'!$A:$C,3,FALSE) -> 1 | G122: Mary's Main Street Spirits | H122: 70229 | I122: 389 Main St. | K122: Carbondale
A123: 6091 | B123: Triporteur Hell 20L BBL | C123: =VLOOKUP(A123,'[1]October 2011'!$A:$T,20,FALSE) -> 156 | D123: =VLOOKUP(A123,'[1]Mountain Pricing'!$A:$T,20,FALSE) -> 156 | E123: =VLOOKUP(A123,'[1]October 2011'!$A:$C,3,FALSE) -> 1 | G123: Mazzola's Italian | H123: 70197 | I123: 917 Lincoln ave | K123: Steamboat Springs
A124: 7000 | B124: D Dock Amber 4/6/12 CN | C124: 29.04 | D124: 30 | E124: =VLOOKUP(A124,'[1]October 2011'!$A:$C,3,FALSE) -> 4 | G124: Metropolitan, The | H124: 70113 | I124: 210 Offerson Rd. | K124: Avon
A125: 7001 | B125: D Dock Apricot 4/6/12 CN | C125: 29.04 | D125: 30 | E125: =VLOOKUP(A125,'[1]October 2011'!$A:$C,3,FALSE) -> 4 | G125: Minturn Mile | H125: 70033 | I125: PO Box 1603 | J125: 341 Hwy 6 & 24 | K125: Minturn
A126: 7002 | B126: D Dock Hop Abom 4/6/12 CN | C126: 29.04 | D126: 30 | E126: =VLOOKUP(A126,'[1]October 2011'!$A:$C,3,FALSE) -> 4 | G126: Moe's BBQ | H126: 70164 | I126: 616 W Lionshead cir | K126: Vail
A127: 7003 | B127: D Dock Heffew 4/6/12 CN | C127: 29.04 | D127: 30 | E127: =VLOOKUP(A127,'[1]October 2011'!$A:$C,3,FALSE) -> 4 | G127: Moe's Original - Breckenridge | H127: 70194 | I127: 110 S. Ridge St. | K127: Breckenridge
A128: 7004 | B128: D Dock Bty Box 2/12 CN | C128: 29.04 | D128: 30 | E128: =VLOOKUP(A128,'[1]October 2011'!$A:$C,3,FALSE) -> 2 | G128: Moe's Original BBQ | H128: 70142 | I128: 630 Grand Ave | K128: Eagle
A129: 7005 | B129: D Dock Apricot 2/12 CN | C129: 29.04 | D129: 30 | E129: 2 | G129: Montauk Seafood Grill | H129: 70034 | I129: 549 W. Lionshead Mall | K129: Vail
A130: 7021 | B130: D Dock Tripel 12/22 NR | C130: =VLOOKUP(A130,'[1]October 2011'!$A:$T,20,FALSE) -> 66 | D130: =VLOOKUP(A130,'[1]Mountain Pricing'!$A:$T,20,FALSE) -> 67.92 | E130: =VLOOKUP(A130,'[1]October 2011'!$A:$C,3,FALSE) -> 12 | G130: Monument Village Liquor | H130: 70064 | I130: 2148 Broadway #C1 | K130: Grand Junction
A131: 7022 | B131: D Dock Van Port 12/22 NR | C131: =VLOOKUP(A131,'[1]October 2011'!$A:$T,20,FALSE) -> 54 | D131: =VLOOKUP(A131,'[1]Mountain Pricing'!$A:$T,20,FALSE) -> 55.92 | E131: =VLOOKUP(A131,'[1]October 2011'!$A:$C,3,FALSE) -> 12 | G131: Moonshine Liquors | H131: 70035 | I131: 268 Hwy 92 | K131: Delta
A132: 7023 | B132: D Dock Enterprise IPA 12/22 NR | C132: =VLOOKUP(A132,'[1]October 2011'!$A:$T,20,FALSE) -> 54 | D132: =VLOOKUP(A132,'[1]Mountain Pricing'!$A:$T,20,FALSE) -> 55.92 | E132: =VLOOKUP(A132,'[1]October 2011'!$A:$C,3,FALSE) -> 12 | G132: Nancy McGees Irish Pub | H132: 70213 | I132: 359 Colorad Ave. 102-104 | K132: Grand Junction
A133: 7024 | B133: D Dock Wee Heavy 12/22 NR | C133: =VLOOKUP(A133,'[1]October 2011'!$A:$T,20,FALSE) -> 66 | D133: =VLOOKUP(A133,'[1]Mountain Pricing'!$A:$T,20,FALSE) -> 67.92 | E133: =VLOOKUP(A133,'[1]October 2011'!$A:$C,3,FALSE) -> 12 | G133: Northside | H133: 70168 | I133: 315 N Main St. | K133: Breckenridge
A134: 7025 | B134: D Dock Pumpkin 12/22 NR | C134: =VLOOKUP(A134,'[1]October 2011'!$A:$T,20,FALSE) -> 77.04 | D134: =VLOOKUP(A134,'[1]Mountain Pricing'!$A:$T,20,FALSE) -> 79.92 | E134: =VLOOKUP(A134,'[1]October 2011'!$A:$C,3,FALSE) -> 12 | G134: Old Chicago GJ | H134: 70149 | I134: 120 North Ave | K134: Grand Junction
A135: 7026 | B135: D Dock Bligh's Barley Wine 12/22 NR | C135: =VLOOKUP(A135,'[1]October 2011'!$A:$T,20,FALSE) -> 171 | D135: =VLOOKUP(A135,'[1]Mountain Pricing'!$A:$T,20,FALSE) -> 171 | E135: =VLOOKUP(A135,'[1]October 2011'!$A:$C,3,FALSE) -> 12 | G135: Old Chicago Silverthorne | H135: 70148 | I135: 560 Silverthorne Ln. | K135: Silverthorne
A136: 7027 | B136: D Dock Colo Frdm Blnd 12/22 NR | C136: 54 | D136: 55.92 | E136: 12 | G136: Old Forge Pizza Co. - Frontage | H136: 70104 | I136: 2161 N Frontage Rd. | K136: Vail
A137: 7028 | B137: D Dock Imp Stout 12/22 NR | C137: =VLOOKUP(A137,'[1]October 2011'!$A:$T,20,FALSE) -> 111 | D137: =VLOOKUP(A137,'[1]Mountain Pricing'!$A:$T,20,FALSE) -> 111 | E137: =VLOOKUP(A137,'[1]October 2011'!$A:$C,3,FALSE) -> 12 | G137: Old Forge Pizza Co. - Lionshead | H137: 70103 | I137: 520 E. Lionshead Cir. | K137: Vail
A138: 7030 | B138: D Dock Amber 1/2 BBL | C138: =VLOOKUP(A138,'[1]October 2011'!$A:$T,20,FALSE) -> 125 | D138: =VLOOKUP(A138,'[1]Mountain Pricing'!$A:$T,20,FALSE) -> 125 | E138: =VLOOKUP(A138,'[1]October 2011'!$A:$C,3,FALSE) -> 1 | G138: Old Forge Pizza Co. - Edwards | H138: 70105 | I138: 34295 Highway 6 # C113 | K138: Edwards
A139: 7031 | B139: D Dock Apricot 1/2 BBL | C139: =VLOOKUP(A139,'[1]October 2011'!$A:$T,20,FALSE) -> 125 | D139: =VLOOKUP(A139,'[1]Mountain Pricing'!$A:$T,20,FALSE) -> 125 | E139: =VLOOKUP(A139,'[1]October 2011'!$A:$C,3,FALSE) -> 1 | G139: Old Town Pub | H139: 70187 | I139: 601 Lincoln Ave | K139: Steamboat Springs
A140: 7032 | B140: D Dock Hop Abom 1/2 BBL | C140: =VLOOKUP(A140,'[1]October 2011'!$A:$T,20,FALSE) -> 125 | D140: =VLOOKUP(A140,'[1]Mountain Pricing'!$A:$T,20,FALSE) -> 125 | E140: =VLOOKUP(A140,'[1]October 2011'!$A:$C,3,FALSE) -> 1 | G140: Ollie's Pub and Grub | H140: 70159 | I140: 401 S. Main St. | K140: Breckenridge
A141: 7033 | B141: D Dock Heffew 1/2 BBL | C141: =VLOOKUP(A141,'[1]October 2011'!$A:$T,20,FALSE) -> 125 | D141: =VLOOKUP(A141,'[1]Mountain Pricing'!$A:$T,20,FALSE) -> 125 | E141: =VLOOKUP(A141,'[1]October 2011'!$A:$C,3,FALSE) -> 1 | G141: One Ski Hill Place | H141: 70207 | I141: 1521 Ski Hill Rd. | K141: Breckenridge
A142: 7034 | B142: D Dock Van Porter 1/2 BBL | C142: =VLOOKUP(A142,'[1]October 2011'!$A:$T,20,FALSE) -> 125 | D142: =VLOOKUP(A142,'[1]Mountain Pricing'!$A:$T,20,FALSE) -> 125 | E142: =VLOOKUP(A142,'[1]October 2011'!$A:$C,3,FALSE) -> 1 | G142: Orehouse at the Pine Grove | H142: 70186 | I142: 1465 Pine Grove Rd | K142: Steamboat Springs
A143: 7035 | B143: D Dock USS IPA 1/2 BBL | C143: =VLOOKUP(A143,'[1]October 2011'!$A:$T,20,FALSE) -> 125 | D143: =VLOOKUP(A143,'[1]Mountain Pricing'!$A:$T,20,FALSE) -> 125 | E143: =VLOOKUP(A143,'[1]October 2011'!$A:$C,3,FALSE) -> 1 | G143: Ouray Liquors | H143: 70173 | I143: 738 Main St. | K143: Ouray
A144: 7036 | B144: D Dock Pale 1/2 BBL | C144: =VLOOKUP(A144,'[1]October 2011'!$A:$T,20,FALSE) -> 125 | D144: =VLOOKUP(A144,'[1]Mountain Pricing'!$A:$T,20,FALSE) -> 125 | E144: =VLOOKUP(A144,'[1]October 2011'!$A:$C,3,FALSE) -> 1 | G144: Pahgre's | H144: 70220 | I144: 1541 Oxbow Dr Unit 1800 | K144: Montrose
A145: 7037 | B145: D Dock Old Ale 1/2 BBL | C145: =VLOOKUP(A145,'[1]October 2011'!$A:$T,20,FALSE) -> 125 | D145: =VLOOKUP(A145,'[1]Mountain Pricing'!$A:$T,20,FALSE) -> 125 | E145: =VLOOKUP(A145,'[1]October 2011'!$A:$C,3,FALSE) -> 1 | G145: Paonia Liquors | H145: 70036 | I145: PO Box 652 | J145: 4 Third St. | K145: Paonia
A146: 7038 | B146: D Dock Pumpkin 1/2 BBL | C146: =VLOOKUP(A146,'[1]October 2011'!$A:$T,20,FALSE) -> 145 | D146: =VLOOKUP(A146,'[1]Mountain Pricing'!$A:$T,20,FALSE) -> 145 | E146: =VLOOKUP(A146,'[1]October 2011'!$A:$C,3,FALSE) -> 1 | G146: Pastatively Inc. | H146: 70053 | I146: PO Box 4468 | J146: 94 Market St | K146: Eagle
A147: 7039 | B147: D Dock DIPA 1/2 BBL | C147: =VLOOKUP(A147,'[1]October 2011'!$A:$T,20,FALSE) -> 175 | D147: =VLOOKUP(A147,'[1]Mountain Pricing'!$A:$T,20,FALSE) -> 175 | E147: =VLOOKUP(A147,'[1]October 2011'!$A:$C,3,FALSE) -> 1 | G147: Pazzo's Pizzeria | H147: 70099 | I147: 50 Chambers Ave. | K147: Eagle
A148: 7040 | B148: D Dock Wee Heavy 1/2 BBL | C148: =VLOOKUP(A148,'[1]October 2011'!$A:$T,20,FALSE) -> 175 | D148: =VLOOKUP(A148,'[1]Mountain Pricing'!$A:$T,20,FALSE) -> 175 | E148: =VLOOKUP(A148,'[1]October 2011'!$A:$C,3,FALSE) -> 1 | G148: Peachwood Liquor | H148: 70145 | I148: 309 W. 8th St. Unit 2 | K148: Palasade
A149: 7041 | B149: D Dock Tripel 1/2 BBL | C149: =VLOOKUP(A149,'[1]October 2011'!$A:$T,20,FALSE) -> 175 | D149: =VLOOKUP(A149,'[1]Mountain Pricing'!$A:$T,20,FALSE) -> 175 | E149: =VLOOKUP(A149,'[1]October 2011'!$A:$C,3,FALSE) -> 1 | G149: Peppinos Pizza of Carbondale | H149: 70183 | I149: 524 Main St. | K149: Carbondale
A150: 7049 | B150: D Dock Rus Imp stout 1/2 BBL | C150: 175 | D150: 175 | E150: 1 | G150: Pete's House Of Spirits | H150: 70057 | I150: 1560 North Ave | K150: Grand Junction
A151: 7050 | B151: D Dock Amber 1/6 BBL | C151: =VLOOKUP(A151,'[1]October 2011'!$A:$T,20,FALSE) -> 45 | D151: =VLOOKUP(A151,'[1]Mountain Pricing'!$A:$T,20,FALSE) -> 48 | E151: =VLOOKUP(A151,'[1]October 2011'!$A:$C,3,FALSE) -> 1 | G151: Phat Thai | H151: 70037 | I151: 0302 Escalante | K151: Carbondale
A152: 7051 | B152: D Dock Apricot 1/6 BBL | C152: =VLOOKUP(A152,'[1]October 2011'!$A:$T,20,FALSE) -> 45 | D152: =VLOOKUP(A152,'[1]Mountain Pricing'!$A:$T,20,FALSE) -> 48 | E152: =VLOOKUP(A152,'[1]October 2011'!$A:$C,3,FALSE) -> 1 | G152: Pier 13 Liquor | H152: 70097 | I152: 41131 US Hwy 6 & 24 | K152: Avon
A153: 7052 | B153: D Dock Hop Abom 1/6 BBL | C153: =VLOOKUP(A153,'[1]October 2011'!$A:$T,20,FALSE) -> 45 | D153: =VLOOKUP(A153,'[1]Mountain Pricing'!$A:$T,20,FALSE) -> 48 | E153: =VLOOKUP(A153,'[1]October 2011'!$A:$C,3,FALSE) -> 1 | G153: Pizza on the Plaza | H153: 70122 | I153: 22080 hwy 6 | K153: Keystone
A154: 7053 | B154: D Dock Heffew 1/6 BBL | C154: =VLOOKUP(A154,'[1]October 2011'!$A:$T,20,FALSE) -> 45 | D154: =VLOOKUP(A154,'[1]Mountain Pricing'!$A:$T,20,FALSE) -> 48 | E154: =VLOOKUP(A154,'[1]October 2011'!$A:$C,3,FALSE) -> 1 | G154: Plaza Liquors | H154: 70151 | I154: 2000 Railroad ave | K154: Rifle
A155: 7054 | B155: D Dock Van Porter 1/6 BBL | C155: =VLOOKUP(A155,'[1]October 2011'!$A:$T,20,FALSE) -> 45 | D155: =VLOOKUP(A155,'[1]Mountain Pricing'!$A:$T,20,FALSE) -> 48 | E155: =VLOOKUP(A155,'[1]October 2011'!$A:$C,3,FALSE) -> 1 | G155: Primavera Liquors | H155: 70127 | I155: 448 Grand Ave | K155: Eagle
A156: 7055 | B156: D Dock USS IPA 1/6 BBL | C156: =VLOOKUP(A156,'[1]October 2011'!$A:$T,20,FALSE) -> 45 | D156: =VLOOKUP(A156,'[1]Mountain Pricing'!$A:$T,20,FALSE) -> 48 | E156: =VLOOKUP(A156,'[1]October 2011'!$A:$C,3,FALSE) -> 1 | G156: Rasta Pasta | H156: 70116 | I156: 411 S. Main St. | K156: Breckenridge
A157: 7056 | B157: D Dock Pale 1/6 BBL | C157: =VLOOKUP(A157,'[1]October 2011'!$A:$T,20,FALSE) -> 45 | D157: =VLOOKUP(A157,'[1]Mountain Pricing'!$A:$T,20,FALSE) -> 48 | E157: =VLOOKUP(A157,'[1]October 2011'!$A:$C,3,FALSE) -> 1 | G157: Red Mountain Grill Avon | H157: 70171 | I157: 240 Chapel Place Unit B123 | K157: Avon
A158: 7057 | B158: D Dock Old Ale 1/6 BBL | C158: =VLOOKUP(A158,'[1]October 2011'!$A:$T,20,FALSE) -> 45 | D158: =VLOOKUP(A158,'[1]Mountain Pricing'!$A:$T,20,FALSE) -> 48 | E158: =VLOOKUP(A158,'[1]October 2011'!$A:$C,3,FALSE) -> 1 | G158: Red Mountain Wine & Spirits | H158: 70038 | I158: 45 Market St. Unit D | K158: Glenwood Springs
A159: 7058 | B159: D Dock Pumpkin 1/6 BBL | C159: =VLOOKUP(A159,'[1]October 2011'!$A:$T,20,FALSE) -> 65 | D159: =VLOOKUP(A159,'[1]Mountain Pricing'!$A:$T,20,FALSE) -> 65 | E159: =VLOOKUP(A159,'[1]October 2011'!$A:$C,3,FALSE) -> 1 | G159: Redlands Liquor | H159: 70039 | I159: 2500 Broadway Suite AB | K159: Grand Junction
A160: 7059 | B160: D Dock DIPA 1/6 BBL | C160: =VLOOKUP(A160,'[1]October 2011'!$A:$T,20,FALSE) -> 65 | D160: =VLOOKUP(A160,'[1]Mountain Pricing'!$A:$T,20,FALSE) -> 65 | E160: =VLOOKUP(A160,'[1]October 2011'!$A:$C,3,FALSE) -> 1 | G160: Relish | H160: 70177 | I160: 137 S. Main St. | K160: Breckenridge
A161: 7060 | B161: D Dock Wee Heavy 1/6 BBL | C161: =VLOOKUP(A161,'[1]October 2011'!$A:$T,20,FALSE) -> 65 | D161: =VLOOKUP(A161,'[1]Mountain Pricing'!$A:$T,20,FALSE) -> 65 | E161: =VLOOKUP(A161,'[1]October 2011'!$A:$C,3,FALSE) -> 1 | G161: Restarurant Kelly Liken | H161: 70069 | I161: 12 Vail Rd. Ste. 10 | K161: Vail
A162: 7061 | B162: D Dock Tripel 1/6 BBL | C162: =VLOOKUP(A162,'[1]October 2011'!$A:$T,20,FALSE) -> 65 | D162: =VLOOKUP(A162,'[1]Mountain Pricing'!$A:$T,20,FALSE) -> 65 | E162: =VLOOKUP(A162,'[1]October 2011'!$A:$C,3,FALSE) -> 1 | G162: Rex's | H162: 70114 | I162: 3190 S Lincoln Ave. | K162: Steamboat Springs
A163: 7067 | B163: D Dock Milk Stout 1/6 BBL | C163: 45 | D163: 48 | E163: 1 | G163: Rhino Liquors | H163: 70040 | I163: 6820 Hwy 82 | K163: Glenwood Springs
A164: 7071 | B164: Eddyline IPA 4/6/16 CN | C164: =VLOOKUP(A164,'[1]October 2011'!$A:$T,20,FALSE) -> 35.52 | D164: =VLOOKUP(A164,'[1]Mountain Pricing'!$A:$T,20,FALSE) -> 38.5 | E164: =VLOOKUP(A164,'[1]October 2011'!$A:$C,3,FALSE) -> 4 | G164: Rio Grande Mexican Restaurant | H164: 70237 | I164: 182 Lusher Ct. | K164: Frisco
A165: 7073 | B165: Eddyline Pumpkin 4/6/16 cn | C165: 35.52 | D165: 38.5 | E165: 4 | G165: Ristorante Pantuso's | H165: 70100 | I165: 755 Horizon Dr. | K165: Grand Junction
A166: 7074 | B166: Eddyline Pale 4/6/16 CN | C166: =VLOOKUP(A166,'[1]October 2011'!$A:$T,20,FALSE) -> 35.52 | D166: =VLOOKUP(A166,'[1]Mountain Pricing'!$A:$T,20,FALSE) -> 38.5 | E166: =VLOOKUP(A166,'[1]October 2011'!$A:$C,3,FALSE) -> 4 | G166: Ristorante Ti Amo | H166: 70083 | I166: PO Box 19198 | J166: 4928 Hwy 6 | K166: Avon
A167: 7075 | B167: Eddyline Java Stout 6/4/16 CN | C167: =VLOOKUP(A167,'[1]October 2011'!$A:$T,20,FALSE) -> 62.16 | D167: =VLOOKUP(A167,'[1]Mountain Pricing'!$A:$T,20,FALSE) -> 62.16 | E167: =VLOOKUP(A167,'[1]October 2011'!$A:$C,3,FALSE) -> 6 | G167: Riverside Spirits | H167: 70196 | I167: 2001 Zephyr Way | K167: Winter Park
A168: 7076 | B168: Eddyline Black Lager 6/4/16 CN | C168: =VLOOKUP(A168,'[1]October 2011'!$A:$T,20,FALSE) -> 35.52 | D168: =VLOOKUP(A168,'[1]Mountain Pricing'!$A:$T,20,FALSE) -> 38.5 | E168: =VLOOKUP(A168,'[1]October 2011'!$A:$C,3,FALSE) -> 4 | G168: Riverwalk Wine & Spirits | H168: 70041 | I168: PO Box 1717 | J168: 34295 Hwy 6 Bldg. 6 | K168: Edwards
A169: 7091 | B169: Eddyline IPA 1/2 BBL | C169: =VLOOKUP(A169,'[1]October 2011'!$A:$T,20,FALSE) -> 130 | D169: =VLOOKUP(A169,'[1]Mountain Pricing'!$A:$T,20,FALSE) -> 130 | E169: =VLOOKUP(A169,'[1]October 2011'!$A:$C,3,FALSE) -> 1 | G169: Roaring Fork Club | H169: 70166 | I169: 100 Arbaney Ranch Rd | K169: Basalt
A170: 7094 | B170: Eddyline Pale 1/2 BBL | C170: =VLOOKUP(A170,'[1]October 2011'!$A:$T,20,FALSE) -> 130 | D170: =VLOOKUP(A170,'[1]Mountain Pricing'!$A:$T,20,FALSE) -> 130 | E170: =VLOOKUP(A170,'[1]October 2011'!$A:$C,3,FALSE) -> 1 | G170: Roaring Fork Liquors | H170: 70042 | I170: 3120 C Blake Ave | K170: Glenwood Springs
A171: 7096 | B171: Eddyline IPA 1/6 BBL | C171: =VLOOKUP(A171,'[1]October 2011'!$A:$T,20,FALSE) -> 47 | D171: =VLOOKUP(A171,'[1]Mountain Pricing'!$A:$T,20,FALSE) -> 48 | E171: 1 | G171: Rockin R Ranch | H171: 70111 | I171: 0091 River Run Rd. | K171: Keystone
A172: 7098 | B172: Eddyline Pale 1/6 BBL | C172: =VLOOKUP(A172,'[1]October 2011'!$A:$T,20,FALSE) -> 47 | D172: =VLOOKUP(A172,'[1]Mountain Pricing'!$A:$T,20,FALSE) -> 48 | E172: =VLOOKUP(A172,'[1]October 2011'!$A:$C,3,FALSE) -> 1 | G172: Rocky Mountain Liquors | H172: 70043 | I172: 1735 Railroad Ave | K172: Rifle
A173: 7102 | B173: Eddyline Black Lager 1/2 BBL | C173: =VLOOKUP(A173,'[1]October 2011'!$A:$T,20,FALSE) -> 130 | D173: =VLOOKUP(A173,'[1]Mountain Pricing'!$A:$T,20,FALSE) -> 130 | E173: =VLOOKUP(A173,'[1]October 2011'!$A:$C,3,FALSE) -> 1 | G173: Roosters | H173: 70044 | I173: 569 32 Rd. Unit 14 | K173: Grand Junction
A174: 7103 | B174: Eddyline Black Lager 1/6 BBL | C174: =VLOOKUP(A174,'[1]October 2011'!$A:$T,20,FALSE) -> 47 | D174: =VLOOKUP(A174,'[1]Mountain Pricing'!$A:$T,20,FALSE) -> 48 | E174: =VLOOKUP(A174,'[1]October 2011'!$A:$C,3,FALSE) -> 1 | G174: Russo's Pizza | H174: 70077 | I174: 40 Market St | K174: Glenwood Springs
A175: 7204 | B175: D Dock Rus Imp stout 1/6 BBL | C175: 125 | D175: 125 | E175: 1 | G175: Rusted Porch | H175: 70156 | I175: 690 Marketplace Plaza | K175: Steamboat Springs
A176: 7227 | B176: D Dock Cool Lime 1/2 BBL | C176: =VLOOKUP(A176,'[1]October 2011'!$A:$T,20,FALSE) -> 125 | D176: =VLOOKUP(A176,'[1]Mountain Pricing'!$A:$T,20,FALSE) -> 125 | E176: 1 | G176: Saketumi | H176: 70048 | I176: PO Box 775225 | J176: 1875 Ski Time Square | K176: Steamboat Springs
A177: 7230 | B177: D Dock Milk Stout 1/2 BBL | C177: 125 | D177: 125 | E177: 1 | G177: Samples - Gerardo Castillo | H177: 10024 | I177: 4955 N Bannock St | K177: Denver
A178: 7240 | B178: D Dock Specialty 1/2 BBL | C178: 125 | D178: 125 | E178: 1 | G178: Samples - JT Krizman | H178: 10017 | I178: 4955 N Bannock St | K178: Denver
A179: 7241 | B179: D Dock Specialty 1/6 BBL | C179: 45 | D179: 48 | E179: 1 | G179: Samples - William Lodge | H179: 10016 | I179: 4955 N Bannock St | K179: Denver
A180: 7242 | B180: D Dock Specialty High End 1/2 BBL | C180: 175 | D180: 175 | E180: 1 | G180: San Juan Liquors | H180: 70222 | I180: 177 Sherman St | K180: Ridgeway
A181: 7243 | B181: D Dock Specialty High End 1/6 BBL | C181: 175 | D181: 175 | E181: 1 | G181: Schmiggity's | H181: 70217 | I181: 821 Lincoln Ave | K181: Steamboat Springs
A182: 7244 | B182: D Dock Rye Zing Saison 1/2 BBL | C182: 125 | D182: 125 | E182: 1 | G182: Sevens Restaurant | H182: 70209 | I182: 1979 Ski Hill Rd. | K182: Breckenridge
A183: 7245 | B183: D Dock Rye Zing Saison 1/6 BBL | C183: 45 | D183: 48 | E183: 1 | G183: Sheraton Steamboat Resort | H183: 70239 | I183: 2200 Village Inn Ct. | K183: Steamboat Springs
A184: 7247 | B184: D Dock Dbl Brown Ale 1/6 BBl | C184: 125 | D184: 125 | E184: 1 | G184: Silt Disount Liquor | H184: 70049 | I184: 710 Main St. | K184: Silt
A185: 7248 | B185: D Dock Dbl Hazel Brn 1/6 BBL | C185: 125 | D185: 125 | E185: 1 | G185: Silverthorne Liquors | H185: 70131 | I185: 1161 Blue River Pkwy | K185: Silverthorne
A186: 7249 | B186: D Dock Dbl Van Port 1/6 BBL | C186: 125 | D186: 125 | E186: 1 | G186: Skee Vue Liquors | H186: 70124 | I186: 311 s Ridge | K186: Breckenridge
A187: 7250 | B187: D Dock Dbl Coffee Port 1/6 BBL | C187: 125 | D187: 125 | E187: 1 | G187: Ski Haus Liquors | H187: 70085 | I187: PO Box 770488 | J187: 1450 S. lincoln Ave | K187: Steamboat Springs
A188: 7300 | B188: D Dock Dbl Brown Ale 12/22 NR | C188: =VLOOKUP(A188,'[1]October 2011'!$A:$T,20,FALSE) -> 111 | D188: 111 | E188: 12 | G188: Ski Town Liquor | H188: 70058 | I188: 2300 Mt. Werner Cr. | K188: Steamboat Springs
A189: 7301 | B189: D Dock Dbl Hazel Brn 12/22 NR | C189: 111 | D189: 111 | E189: 12 | G189: Sky Hotel and 39 Degrees | H189: 70192 | I189: 709 E Durant Ave | K189: Aspen
A190: 7302 | B190: D Dock Dbl Van Port 12/22 NR | C190: =VLOOKUP(A190,'[1]October 2011'!$A:$T,20,FALSE) -> 111 | D190: 111 | E190: =VLOOKUP(A190,'[1]October 2011'!$A:$C,3,FALSE) -> 12 | G190: Smoke | H190: 70236 | I190: 713 Grand Ave. | K190: Glenwood Springs
A191: 7303 | B191: D Dock Dbl Coffee Port 12/22 NR | C191: 111 | D191: 111 | E191: 12 | G191: Smoke Modern BBQ | H191: 70195 | I191: 241 Harris St. | K191: Basalt
A192: 7304 | B192: D Dock Bligh's 1/2 BBL | C192: 225 | D192: 225 | E192: =VLOOKUP(A192,'[1]October 2011'!$A:$C,3,FALSE) -> 1 | G192: Sopris Liquors & Wine | H192: 70050 | I192: 1026 Hwy 133 | K192: Carbondale
A193: 7400 | B193: BF Brush Creek Blonde 4/6/12 cn | C193: =VLOOKUP(A193,'[1]October 2011'!$A:$T,20,FALSE) -> 27.6 | D193: =VLOOKUP(A193,'[1]Mountain Pricing'!$A:$T,20,FALSE) -> 29.48 | E193: =VLOOKUP(A193,'[1]October 2011'!$A:$C,3,FALSE) -> 4 | G193: South Ridge Seafood | H193: 70190 | I193: 215 Ridge St. | K193: Breckenridge
A194: 7401 | B194: BF Demshitz Brown 4/6/12 cn | C194: =VLOOKUP(A194,'[1]October 2011'!$A:$T,20,FALSE) -> 27.6 | D194: =VLOOKUP(A194,'[1]Mountain Pricing'!$A:$T,20,FALSE) -> 29.48 | E194: =VLOOKUP(A194,'[1]October 2011'!$A:$C,3,FALSE) -> 4 | G194: South Side Liquors | H194: 70107 | I194: 905 Weiss Drive | K194: Steamboat Springs
A195: 7402 | B195: BF Gyptoberfest 4/6/12 cn | C195: =VLOOKUP(A195,'[1]October 2011'!$A:$T,20,FALSE) -> 30.72 | D195: =VLOOKUP(A195,'[1]Mountain Pricing'!$A:$T,20,FALSE) -> 32.4 | E195: =VLOOKUP(A195,'[1]October 2011'!$A:$C,3,FALSE) -> 4 | G195: Spike's Liquors | H195: 70138 | I195: 0971 Bighorn Rd | K195: Vail
A196: 7403 | B196: BF Kindler Pale Ale 4/6/12 cn | C196: =VLOOKUP(A196,'[1]October 2011'!$A:$T,20,FALSE) -> 30.72 | D196: =VLOOKUP(A196,'[1]Mountain Pricing'!$A:$T,20,FALSE) -> 32.4 | E196: 4 | G196: Spirits of Newcastle | H196: 70157 | I196: 302 W. Main St | K196: New Castle
A197: 7404 | B197: BF Mistress Wheat 4/6/12 cn | C197: =VLOOKUP(A197,'[1]October 2011'!$A:$T,20,FALSE) -> 30.72 | D197: =VLOOKUP(A197,'[1]Mountain Pricing'!$A:$T,20,FALSE) -> 32.4 | E197: 4 | G197: Steamboat Golf Club | H197: 70216 | I197: 26815 US Hwy 40 | K197: Steamboat Springs
A198: 7405 | B198: BF Moe's Golden 4/6/12 cn | C198: 30.72 | D198: 32.4 | E198: 4 | G198: Steamboat Grand | H198: 70093 | I198: 2300 Mount Werner Cr. | K198: Steamboat Springs
A199: 7406 | B199: BF Red 4/6/12 CN | C199: =VLOOKUP(A199,'[1]October 2011'!$A:$T,20,FALSE) -> 30.72 | D199: =VLOOKUP(A199,'[1]Mountain Pricing'!$A:$T,20,FALSE) -> 32.4 | E199: =VLOOKUP(A199,'[1]October 2011'!$A:$C,3,FALSE) -> 4 | G199: Summit Liquors | H199: 70211 | I199: 21801 Hwy 6 | K199: Keystone
A200: 7407 | B200: BF ESB 4/6/12 CN | C200: 30.72 | D200: 32.4 | E200: 4 | G200: Sundance | H200: 70112 | I200: 16 Kearns Rd. | K200: Snowmass Village
... 121 more rows

Sheet Sheet3
